Workbook

Sheet ALL sites
B1: SLA | C1: Province | D1: LAT_DEG | E1: LAT_MIN | F1: LAT_SEC | G1: LONG_DEG | H1: LONG_MIN | I1: LONG_SEC | J1: DECIMAL LATITUDE | K1: DECIMAL LONGITUDE | L1: RSGR | M1: SBC1 | N1: SBC2 | O1: SBC3 | P1: 2000 | Q1: DTT1 | R1: DTT2 | S1: SAFM | T1: LOBO | U1: SEDI | V1: EKHE | W1: HOZI | X1: METR | Y1: RAD5 | Z1: RGHP | AA1: WEZI | AB1: WALA | AC1: LTUS | AD1: PHAL | AE1: MOTS | AF1: NENE | AG1: BELA | AH1: XKFM | AI1: Regional Site | AJ1: outside sites | AK1: Probe site
A2: ALIWAL NORTH | B2: =VLOOKUP(A2,'[1]RSG Sites'!$A$2:$F$133,6,FALSE) -> Silver | C2: =VLOOKUP(A2,[2]RAW!$C$2:$O$8276,13,FALSE) -> EC | D2: =VLOOKUP(A2,[2]RAW!$C$2:$J$8276,3,FALSE) -> -30 | E2: =VLOOKUP(A2,[2]RAW!$C$2:$J$8276,4,FALSE) -> -47 | F2: =VLOOKUP(A2,[2]RAW!$C$2:$J$8276,5,FALSE) -> -5 | G2: =VLOOKUP(A2,[2]RAW!$C$2:$J$8276,6,FALSE) -> 26 | H2: =VLOOKUP(A2,[2]RAW!$C$2:$J$8276,7,FALSE) -> 34 | I2: =VLOOKUP(A2,[2]RAW!$C$2:$J$8276,8,FALSE) -> 0 | J2: =VLOOKUP(A2,[3]RAW!$C$17:$BK$8270,60,FALSE) -> -30.78472222 | K2: =VLOOKUP(A2,[3]RAW!$C$17:$BK$8270,61,FALSE) -> 26.56666667 | L2: x | M2: x | N2: x | Q2: x | R2: x | S2: x | T2: x | U2: x | AI2: x | AK2: Port Elizabeth
A3: AMANDA GLEN | B3: =VLOOKUP(A3,'[1]RSG Sites'!$A$2:$F$133,6,FALSE) ->  | C3: =VLOOKUP(A3,[2]RAW!$C$2:$O$8276,13,FALSE) -> WC | D3: =VLOOKUP(A3,[2]RAW!$C$2:$J$8276,3,FALSE) -> -33 | E3: =VLOOKUP(A3,[2]RAW!$C$2:$J$8276,4,FALSE) -> -51 | F3: =VLOOKUP(A3,[2]RAW!$C$2:$J$8276,5,FALSE) -> -18 | G3: =VLOOKUP(A3,[2]RAW!$C$2:$J$8276,6,FALSE) -> 18 | H3: =VLOOKUP(A3,[2]RAW!$C$2:$J$8276,7,FALSE) -> 40 | I3: =VLOOKUP(A3,[2]RAW!$C$2:$J$8276,8,FALSE) -> 33 | J3: =VLOOKUP(A3,[3]RAW!$C$17:$BK$8270,60,FALSE) -> -33.855 | K3: =VLOOKUP(A3,[3]RAW!$C$17:$BK$8270,61,FALSE) -> 18.67583333 | M3: x | N3: x | O3: x | AI3: x | AK3: Seapoint
A4: ANDRIESKRAAL | B4: =VLOOKUP(A4,'[1]RSG Sites'!$A$2:$F$133,6,FALSE) -> Bronze | C4: =VLOOKUP(A4,[2]RAW!$C$2:$O$8276,13,FALSE) -> EC | D4: =VLOOKUP(A4,[2]RAW!$C$2:$J$8276,3,FALSE) -> -33 | E4: =VLOOKUP(A4,[2]RAW!$C$2:$J$8276,4,FALSE) -> -46 | F4: =VLOOKUP(A4,[2]RAW!$C$2:$J$8276,5,FALSE) -> -42 | G4: =VLOOKUP(A4,[2]RAW!$C$2:$J$8276,6,FALSE) -> 24 | H4: =VLOOKUP(A4,[2]RAW!$C$2:$J$8276,7,FALSE) -> 42 | I4: =VLOOKUP(A4,[2]RAW!$C$2:$J$8276,8,FALSE) -> 35 | J4: =VLOOKUP(A4,[3]RAW!$C$17:$BK$8270,60,FALSE) -> -33.77833333 | K4: =VLOOKUP(A4,[3]RAW!$C$17:$BK$8270,61,FALSE) -> 24.70972222 | L4: x | M4: x | N4: x | O4: x | Q4: x | S4: x | T4: x | AI4: x | AK4: Port Elizabeth
A5: AURORA | B5: =VLOOKUP(A5,'[1]RSG Sites'!$A$2:$F$133,6,FALSE) ->  | C5: =VLOOKUP(A5,[2]RAW!$C$2:$O$8276,13,FALSE) -> WC | D5: =VLOOKUP(A5,[2]RAW!$C$2:$J$8276,3,FALSE) -> -33 | E5: =VLOOKUP(A5,[2]RAW!$C$2:$J$8276,4,FALSE) -> -49 | F5: =VLOOKUP(A5,[2]RAW!$C$2:$J$8276,5,FALSE) -> -39 | G5: =VLOOKUP(A5,[2]RAW!$C$2:$J$8276,6,FALSE) -> 18 | H5: =VLOOKUP(A5,[2]RAW!$C$2:$J$8276,7,FALSE) -> 38 | I5: =VLOOKUP(A5,[2]RAW!$C$2:$J$8276,8,FALSE) -> 29 | J5: =VLOOKUP(A5,[3]RAW!$C$17:$BK$8270,60,FALSE) -> -33.8275 | K5: =VLOOKUP(A5,[3]RAW!$C$17:$BK$8270,61,FALSE) -> 18.64138889 | M5: x | N5: x | O5: x | Q5: x | R5: x | AI5: x | AK5: Seapoint
A6: BEZ VALLEY | B6: =VLOOKUP(A6,'[1]RSG Sites'!$A$2:$F$133,6,FALSE) ->  | C6: =VLOOKUP(A6,[2]RAW!$C$2:$O$8276,13,FALSE) -> GP | D6: =VLOOKUP(A6,[2]RAW!$C$2:$J$8276,3,FALSE) -> -26 | E6: =VLOOKUP(A6,[2]RAW!$C$2:$J$8276,4,FALSE) -> -11 | F6: =VLOOKUP(A6,[2]RAW!$C$2:$J$8276,5,FALSE) -> -41 | G6: =VLOOKUP(A6,[2]RAW!$C$2:$J$8276,6,FALSE) -> 28 | H6: =VLOOKUP(A6,[2]RAW!$C$2:$J$8276,7,FALSE) -> 5 | I6: =VLOOKUP(A6,[2]RAW!$C$2:$J$8276,8,FALSE) -> 0 | J6: =VLOOKUP(A6,[3]RAW!$C$17:$BK$8270,60,FALSE) -> -26.19472222 | K6: =VLOOKUP(A6,[3]RAW!$C$17:$BK$8270,61,FALSE) -> 28.08333333 | M6: x | N6: x | O6: x | Q6: x | R6: x | AI6: x | AK6: Aucklandpark
A7: BLOEMFONTEIN | B7: =VLOOKUP(A7,'[1]RSG Sites'!$A$2:$F$133,6,FALSE) -> Silver | C7: =VLOOKUP(A7,[2]RAW!$C$2:$O$8276,13,FALSE) -> FS | D7: =VLOOKUP(A7,[2]RAW!$C$2:$J$8276,3,FALSE) -> -29 | E7: =VLOOKUP(A7,[2]RAW!$C$2:$J$8276,4,FALSE) -> -6 | F7: =VLOOKUP(A7,[2]RAW!$C$2:$J$8276,5,FALSE) -> 0 | G7: =VLOOKUP(A7,[2]RAW!$C$2:$J$8276,6,FALSE) -> 26 | H7: =VLOOKUP(A7,[2]RAW!$C$2:$J$8276,7,FALSE) -> 13 | I7: =VLOOKUP(A7,[2]RAW!$C$2:$J$8276,8,FALSE) -> 0 | J7: =VLOOKUP(A7,[3]RAW!$C$17:$BK$8270,60,FALSE) -> -29.10111111 | K7: =VLOOKUP(A7,[3]RAW!$C$17:$BK$8270,61,FALSE) -> 26.22888889 | L7: x | M7: x | N7: x | O7: x | P7: x | Q7: x | R7: x | S7: x | T7: x | U7: x | X7: x | Y7: x | AI7: x | AK7: Bloemfontein
A8: BLOUBERG | B8: =VLOOKUP(A8,'[1]RSG Sites'!$A$2:$F$133,6,FALSE) -> Bronze | C8: =VLOOKUP(A8,[2]RAW!$C$2:$O$8276,13,FALSE) -> LP | D8: =VLOOKUP(A8,[2]RAW!$C$2:$J$8276,3,FALSE) -> -23 | E8: =VLOOKUP(A8,[2]RAW!$C$2:$J$8276,4,FALSE) -> -4 | F8: =VLOOKUP(A8,[2]RAW!$C$2:$J$8276,5,FALSE) -> -19 | G8: =VLOOKUP(A8,[2]RAW!$C$2:$J$8276,6,FALSE) -> 28 | H8: =VLOOKUP(A8,[2]RAW!$C$2:$J$8276,7,FALSE) -> 59 | I8: =VLOOKUP(A8,[2]RAW!$C$2:$J$8276,8,FALSE) -> 12 | J8: =VLOOKUP(A8,[3]RAW!$C$17:$BK$8270,60,FALSE) -> -23.07194444 | K8: =VLOOKUP(A8,[3]RAW!$C$17:$BK$8270,61,FALSE) -> 28.98666667 | L8: x | S8: x | AG8: x | AI8: x | AK8: Polokwane
A9: BUTTERWORTH | B9: =VLOOKUP(A9,'[1]RSG Sites'!$A$2:$F$133,6,FALSE) -> Silver | C9: =VLOOKUP(A9,[2]RAW!$C$2:$O$8276,13,FALSE) -> EC | D9: =VLOOKUP(A9,[2]RAW!$C$2:$J$8276,3,FALSE) -> -32 | E9: =VLOOKUP(A9,[2]RAW!$C$2:$J$8276,4,FALSE) -> -16 | F9: =VLOOKUP(A9,[2]RAW!$C$2:$J$8276,5,FALSE) -> -35 | G9: =VLOOKUP(A9,[2]RAW!$C$2:$J$8276,6,FALSE) -> 28 | H9: =VLOOKUP(A9,[2]RAW!$C$2:$J$8276,7,FALSE) -> 12 | I9: =VLOOKUP(A9,[2]RAW!$C$2:$J$8276,8,FALSE) -> 24 | J9: =VLOOKUP(A9,[3]RAW!$C$17:$BK$8270,60,FALSE) -> -32.27638889 | K9: =VLOOKUP(A9,[3]RAW!$C$17:$BK$8270,61,FALSE) -> 28.20666667 | L9: x | M9: x | N9: x | O9: x | P9: x | Q9: x | R9: x | S9: x | T9: x | AI9: x | AK9: Eastlondon
A10: CAPE TOWN | B10: =VLOOKUP(A10,'[1]RSG Sites'!$A$2:$F$133,6,FALSE) -> Platinum | C10: =VLOOKUP(A10,[2]RAW!$C$2:$O$8276,13,FALSE) -> WC | D10: =VLOOKUP(A10,[2]RAW!$C$2:$J$8276,3,FALSE) -> -34 | E10: =VLOOKUP(A10,[2]RAW!$C$2:$J$8276,4,FALSE) -> -3 | F10: =VLOOKUP(A10,[2]RAW!$C$2:$J$8276,5,FALSE) -> -18 | G10: =VLOOKUP(A10,[2]RAW!$C$2:$J$8276,6,FALSE) -> 18 | H10: =VLOOKUP(A10,[2]RAW!$C$2:$J$8276,7,FALSE) -> 23 | I10: =VLOOKUP(A10,[2]RAW!$C$2:$J$8276,8,FALSE) -> 11 | J10: =VLOOKUP(A10,[3]RAW!$C$17:$BK$8270,60,FALSE) -> -34.055 | K10: =VLOOKUP(A10,[3]RAW!$C$17:$BK$8270,61,FALSE) -> 18.38638889 | L10: x | M10: x | N10: x | O10: x | P10: x | Q10: x | R10: x | S10: x | T10: x | Y10: x | Z10: x | AI10: x | AK10: Seapoint
A11: CAROLINA | B11: =VLOOKUP(A11,'[1]RSG Sites'!$A$2:$F$133,6,FALSE) -> Silver | C11: =VLOOKUP(A11,[2]RAW!$C$2:$O$8276,13,FALSE) -> MP | D11: =VLOOKUP(A11,[2]RAW!$C$2:$J$8276,3,FALSE) -> -26 | E11: =VLOOKUP(A11,[2]RAW!$C$2:$J$8276,4,FALSE) -> -10 | F11: =VLOOKUP(A11,[2]RAW!$C$2:$J$8276,5,FALSE) -> -37 | G11: =VLOOKUP(A11,[2]RAW!$C$2:$J$8276,6,FALSE) -> 30 | H11: =VLOOKUP(A11,[2]RAW!$C$2:$J$8276,7,FALSE) -> 37 | I11: =VLOOKUP(A11,[2]RAW!$C$2:$J$8276,8,FALSE) -> 57 | J11: =VLOOKUP(A11,[3]RAW!$C$17:$BK$8270,60,FALSE) -> -26.17694444 | K11: =VLOOKUP(A11,[3]RAW!$C$17:$BK$8270,61,FALSE) -> 30.6325 | L11: x | M11: x | N11: x | Q11: x | R11: x | S11: x | W11: x | AB11: x | AI11: x | AK11: Nelspruit
A12: CHRISTIANA | B12: =VLOOKUP(A12,'[1]RSG Sites'!$A$2:$F$133,6,FALSE) -> Silver | C12: =VLOOKUP(A12,[2]RAW!$C$2:$O$8276,13,FALSE) -> NW | D12: =VLOOKUP(A12,[2]RAW!$C$2:$J$8276,3,FALSE) -> -27 | E12: =VLOOKUP(A12,[2]RAW!$C$2:$J$8276,4,FALSE) -> -53 | F12: =VLOOKUP(A12,[2]RAW!$C$2:$J$8276,5,FALSE) -> -3 | G12: =VLOOKUP(A12,[2]RAW!$C$2:$J$8276,6,FALSE) -> 24 | H12: =VLOOKUP(A12,[2]RAW!$C$2:$J$8276,7,FALSE) -> 55 | I12: =VLOOKUP(A12,[2]RAW!$C$2:$J$8276,8,FALSE) -> 50 | J12: =VLOOKUP(A12,[3]RAW!$C$17:$BK$8270,60,FALSE) -> -27.88416667 | K12: =VLOOKUP(A12,[3]RAW!$C$17:$BK$8270,61,FALSE) -> 24.93055556 | L12: x | M12: x | N12: x | O12: x | Q12: x | R12: x | S12: x | AE12: x | AJ12: x | AK12: Kimbely
A13: CLIFTON | B13: =VLOOKUP(A13,'[1]RSG Sites'!$A$2:$F$133,6,FALSE) ->  | C13: =VLOOKUP(A13,[2]RAW!$C$2:$O$8276,13,FALSE) -> WC | D13: =VLOOKUP(A13,[2]RAW!$C$2:$J$8276,3,FALSE) -> -33 | E13: =VLOOKUP(A13,[2]RAW!$C$2:$J$8276,4,FALSE) -> -56 | F13: =VLOOKUP(A13,[2]RAW!$C$2:$J$8276,5,FALSE) -> -31 | G13: =VLOOKUP(A13,[2]RAW!$C$2:$J$8276,6,FALSE) -> 18 | H13: =VLOOKUP(A13,[2]RAW!$C$2:$J$8276,7,FALSE) -> 22 | I13: =VLOOKUP(A13,[2]RAW!$C$2:$J$8276,8,FALSE) -> 36 | J13: =VLOOKUP(A13,[3]RAW!$C$17:$BK$8270,60,FALSE) -> -33.94194444 | K13: =VLOOKUP(A13,[3]RAW!$C$17:$BK$8270,61,FALSE) -> 18.37666667 | M13: x | N13: x | O13: x | Q13: x | R13: x | AI13: x | AK13: Seapoint
A14: DESPATCH | B14: =VLOOKUP(A14,'[1]RSG Sites'!$A$2:$F$133,6,FALSE) ->  | C14: =VLOOKUP(A14,[2]RAW!$C$2:$O$8276,13,FALSE) -> EC | D14: =VLOOKUP(A14,[2]RAW!$C$2:$J$8276,3,FALSE) -> -33 | E14: =VLOOKUP(A14,[2]RAW!$C$2:$J$8276,4,FALSE) -> -45 | F14: =VLOOKUP(A14,[2]RAW!$C$2:$J$8276,5,FALSE) -> -53 | G14: =VLOOKUP(A14,[2]RAW!$C$2:$J$8276,6,FALSE) -> 25 | H14: =VLOOKUP(A14,[2]RAW!$C$2:$J$8276,7,FALSE) -> 25 | I14: =VLOOKUP(A14,[2]RAW!$C$2:$J$8276,8,FALSE) -> 29 | J14: =VLOOKUP(A14,[3]RAW!$C$17:$BK$8270,60,FALSE) -> -33.76472222 | K14: =VLOOKUP(A14,[3]RAW!$C$17:$BK$8270,61,FALSE) -> 25.42472222 | M14: x | N14: x | O14: x | Q14: x | R14: x | AI14: x | AK14: Port Elizabeth
A15: DEWETSDORP | B15: =VLOOKUP(A15,'[1]RSG Sites'!$A$2:$F$133,6,FALSE) ->  | C15: =VLOOKUP(A15,[2]RAW!$C$2:$O$8276,13,FALSE) -> FS | D15: =VLOOKUP(A15,[2]RAW!$C$2:$J$8276,3,FALSE) -> -29 | E15: =VLOOKUP(A15,[2]RAW!$C$2:$J$8276,4,FALSE) -> -34 | F15: =VLOOKUP(A15,[2]RAW!$C$2:$J$8276,5,FALSE) -> -44 | G15: =VLOOKUP(A15,[2]RAW!$C$2:$J$8276,6,FALSE) -> 26 | H15: =VLOOKUP(A15,[2]RAW!$C$2:$J$8276,7,FALSE) -> 39 | I15: =VLOOKUP(A15,[2]RAW!$C$2:$J$8276,8,FALSE) -> 37 | J15: =VLOOKUP(A15,[3]RAW!$C$17:$BK$8270,60,FALSE) -> -29.57888889 | K15: =VLOOKUP(A15,[3]RAW!$C$17:$BK$8270,61,FALSE) -> 26.66027778 | N15: x | Q15: x | AI15: x | AK15: Bloemfontein
A16: DOUGLAS | B16: =VLOOKUP(A16,'[1]RSG Sites'!$A$2:$F$133,6,FALSE) -> Silver | C16: =VLOOKUP(A16,[2]RAW!$C$2:$O$8276,13,FALSE) -> NC | D16: =VLOOKUP(A16,[2]RAW!$C$2:$J$8276,3,FALSE) -> -29 | E16: =VLOOKUP(A16,[2]RAW!$C$2:$J$8276,4,FALSE) -> -4 | F16: =VLOOKUP(A16,[2]RAW!$C$2:$J$8276,5,FALSE) -> -9 | G16: =VLOOKUP(A16,[2]RAW!$C$2:$J$8276,6,FALSE) -> 23 | H16: =VLOOKUP(A16,[2]RAW!$C$2:$J$8276,7,FALSE) -> 31 | I16: =VLOOKUP(A16,[2]RAW!$C$2:$J$8276,8,FALSE) -> 43 | J16: =VLOOKUP(A16,[3]RAW!$C$17:$BK$8270,60,FALSE) -> -29.06916667 | K16: =VLOOKUP(A16,[3]RAW!$C$17:$BK$8270,61,FALSE) -> 23.52861111 | L16: x | N16: x | Q16: x | S16: x | AI16: x | AK16: Kimbely
A17: DULLSTROOM | B17: =VLOOKUP(A17,'[1]RSG Sites'!$A$2:$F$133,6,FALSE) -> Silver | C17: =VLOOKUP(A17,[2]RAW!$C$2:$O$8276,13,FALSE) -> MP | D17: =VLOOKUP(A17,[2]RAW!$C$2:$J$8276,3,FALSE) -> -25 | E17: =VLOOKUP(A17,[2]RAW!$C$2:$J$8276,4,FALSE) -> -34 | F17: =VLOOKUP(A17,[2]RAW!$C$2:$J$8276,5,FALSE) -> -21 | G17: =VLOOKUP(A17,[2]RAW!$C$2:$J$8276,6,FALSE) -> 30 | H17: =VLOOKUP(A17,[2]RAW!$C$2:$J$8276,7,FALSE) -> 11 | I17: =VLOOKUP(A17,[2]RAW!$C$2:$J$8276,8,FALSE) -> 17 | J17: =VLOOKUP(A17,[3]RAW!$C$17:$BK$8270,60,FALSE) -> -25.5725 | K17: =VLOOKUP(A17,[3]RAW!$C$17:$BK$8270,61,FALSE) -> 30.18805556 | L17: x | M17: x | N17: x | Q17: x | S17: x | W17: x | AA17: x | AB17: x | AG17: x | AI17: x | AK17: Nelspruit
A18: DURBAN | B18: =VLOOKUP(A18,'[1]RSG Sites'!$A$2:$F$133,6,FALSE) -> Platinum | C18: =VLOOKUP(A18,[2]RAW!$C$2:$O$8276,13,FALSE) -> KN | D18: =VLOOKUP(A18,[2]RAW!$C$2:$J$8276,3,FALSE) -> -29 | E18: =VLOOKUP(A18,[2]RAW!$C$2:$J$8276,4,FALSE) -> -46 | F18: =VLOOKUP(A18,[2]RAW!$C$2:$J$8276,5,FALSE) -> 0 | G18: =VLOOKUP(A18,[2]RAW!$C$2:$J$8276,6,FALSE) -> 30 | H18: =VLOOKUP(A18,[2]RAW!$C$2:$J$8276,7,FALSE) -> 40 | I18: =VLOOKUP(A18,[2]RAW!$C$2:$J$8276,8,FALSE) -> 0 | J18: =VLOOKUP(A18,[3]RAW!$C$17:$BK$8270,60,FALSE) -> -29.77 | K18: =VLOOKUP(A18,[3]RAW!$C$17:$BK$8270,61,FALSE) -> 30.71666667 | L18: x | M18: x | N18: x | O18: x | P18: x | Q18: x | R18: x | S18: x | T18: x | W18: x | X18: x | Y18: x | AC18: x | AI18: x | AK18: Durban
A19: DURBAN NORTH | B19: =VLOOKUP(A19,'[1]RSG Sites'!$A$2:$F$133,6,FALSE) -> Silver | C19: =VLOOKUP(A19,[2]RAW!$C$2:$O$8276,13,FALSE) -> KN | D19: =VLOOKUP(A19,[2]RAW!$C$2:$J$8276,3,FALSE) -> -29 | E19: =VLOOKUP(A19,[2]RAW!$C$2:$J$8276,4,FALSE) -> -45 | F19: =VLOOKUP(A19,[2]RAW!$C$2:$J$8276,5,FALSE) -> -52 | G19: =VLOOKUP(A19,[2]RAW!$C$2:$J$8276,6,FALSE) -> 31 | H19: =VLOOKUP(A19,[2]RAW!$C$2:$J$8276,7,FALSE) -> 2 | I19: =VLOOKUP(A19,[2]RAW!$C$2:$J$8276,8,FALSE) -> 24 | J19: =VLOOKUP(A19,[3]RAW!$C$17:$BK$8270,60,FALSE) -> -29.76444444 | K19: =VLOOKUP(A19,[3]RAW!$C$17:$BK$8270,61,FALSE) -> 31.04 | L19: x | P19: x | S19: x | W19: x | X19: x | Y19: x | AC19: x | AI19: x | AK19: Durban
A20: DZAMBA | B20: =VLOOKUP(A20,'[1]RSG Sites'!$A$2:$F$133,6,FALSE) ->  | C20: =VLOOKUP(A20,[2]RAW!$C$2:$O$8276,13,FALSE) -> LP | D20: =VLOOKUP(A20,[2]RAW!$C$2:$J$8276,3,FALSE) -> -22 | E20: =VLOOKUP(A20,[2]RAW!$C$2:$J$8276,4,FALSE) -> -49 | F20: =VLOOKUP(A20,[2]RAW!$C$2:$J$8276,5,FALSE) -> -5 | G20: =VLOOKUP(A20,[2]RAW!$C$2:$J$8276,6,FALSE) -> 30 | H20: =VLOOKUP(A20,[2]RAW!$C$2:$J$8276,7,FALSE) -> 18 | I20: =VLOOKUP(A20,[2]RAW!$C$2:$J$8276,8,FALSE) -> 41 | J20: =VLOOKUP(A20,[3]RAW!$C$17:$BK$8270,60,FALSE) -> -22.81805556 | K20: =VLOOKUP(A20,[3]RAW!$C$17:$BK$8270,61,FALSE) -> 30.31138889 | M20: x | N20: x | Q20: x | AD20: x | AI20: x | AK20: Thohoyandou
A21: EAST LONDON | B21: =VLOOKUP(A21,'[1]RSG Sites'!$A$2:$F$133,6,FALSE) -> Silver | C21: =VLOOKUP(A21,[2]RAW!$C$2:$O$8276,13,FALSE) -> EC | D21: =VLOOKUP(A21,[2]RAW!$C$2:$J$8276,3,FALSE) -> -32 | E21: =VLOOKUP(A21,[2]RAW!$C$2:$J$8276,4,FALSE) -> -56 | F21: =VLOOKUP(A21,[2]RAW!$C$2:$J$8276,5,FALSE) -> -20 | G21: =VLOOKUP(A21,[2]RAW!$C$2:$J$8276,6,FALSE) -> 27 | H21: =VLOOKUP(A21,[2]RAW!$C$2:$J$8276,7,FALSE) -> 48 | I21: =VLOOKUP(A21,[2]RAW!$C$2:$J$8276,8,FALSE) -> 56 | J21: =VLOOKUP(A21,[3]RAW!$C$17:$BK$8270,60,FALSE) -> -32.93888889 | K21: =VLOOKUP(A21,[3]RAW!$C$17:$BK$8270,61,FALSE) -> 27.81555556 | L21: x | M21: x | N21: x | O21: x | P21: x | Q21: x | R21: x | S21: x | T21: x | W21: x | X21: x | Y21: x | AI21: x | AK21: Eastlondon
A22: ENZELSBERG | B22: =VLOOKUP(A22,'[1]RSG Sites'!$A$2:$F$133,6,FALSE) -> Silver | C22: =VLOOKUP(A22,[2]RAW!$C$2:$O$8276,13,FALSE) -> NW | D22: =VLOOKUP(A22,[2]RAW!$C$2:$J$8276,3,FALSE) -> -25 | E22: =VLOOKUP(A22,[2]RAW!$C$2:$J$8276,4,FALSE) -> -25 | F22: =VLOOKUP(A22,[2]RAW!$C$2:$J$8276,5,FALSE) -> -7 | G22: =VLOOKUP(A22,[2]RAW!$C$2:$J$8276,6,FALSE) -> 26 | H22: =VLOOKUP(A22,[2]RAW!$C$2:$J$8276,7,FALSE) -> 13 | I22: =VLOOKUP(A22,[2]RAW!$C$2:$J$8276,8,FALSE) -> 16 | J22: =VLOOKUP(A22,[3]RAW!$C$17:$BK$8270,60,FALSE) -> -25.41861111 | K22: =VLOOKUP(A22,[3]RAW!$C$17:$BK$8270,61,FALSE) -> 26.22111111 | L22: x | M22: x | N22: x | O22: x | Q22: x | S22: x | AE22: x | AI22: x | AK22: Mahikeng
A23: FISHHOEK | B23: =VLOOKUP(A23,'[1]RSG Sites'!$A$2:$F$133,6,FALSE) ->  | C23: =VLOOKUP(A23,[2]RAW!$C$2:$O$8276,13,FALSE) -> WC | D23: =VLOOKUP(A23,[2]RAW!$C$2:$J$8276,3,FALSE) -> -34 | E23: =VLOOKUP(A23,[2]RAW!$C$2:$J$8276,4,FALSE) -> -8 | F23: =VLOOKUP(A23,[2]RAW!$C$2:$J$8276,5,FALSE) -> -59 | G23: =VLOOKUP(A23,[2]RAW!$C$2:$J$8276,6,FALSE) -> 18 | H23: =VLOOKUP(A23,[2]RAW!$C$2:$J$8276,7,FALSE) -> 26 | I23: =VLOOKUP(A23,[2]RAW!$C$2:$J$8276,8,FALSE) -> 8 | J23: =VLOOKUP(A23,[3]RAW!$C$17:$BK$8270,60,FALSE) -> -34.14972222 | K23: =VLOOKUP(A23,[3]RAW!$C$17:$BK$8270,61,FALSE) -> 18.43555556 | M23: x | N23: x | O23: x | Q23: x | R23: x | AI23: x | AK23: Seapoint
A24: FRANSCHHOEK | B24: =VLOOKUP(A24,'[1]RSG Sites'!$A$2:$F$133,6,FALSE) -> Silver | C24: =VLOOKUP(A24,[2]RAW!$C$2:$O$8276,13,FALSE) -> WC | D24: =VLOOKUP(A24,[2]RAW!$C$2:$J$8276,3,FALSE) -> -33 | E24: =VLOOKUP(A24,[2]RAW!$C$2:$J$8276,4,FALSE) -> -54 | F24: =VLOOKUP(A24,[2]RAW!$C$2:$J$8276,5,FALSE) -> -26 | G24: =VLOOKUP(A24,[2]RAW!$C$2:$J$8276,6,FALSE) -> 19 | H24: =VLOOKUP(A24,[2]RAW!$C$2:$J$8276,7,FALSE) -> 4 | I24: =VLOOKUP(A24,[2]RAW!$C$2:$J$8276,8,FALSE) -> 23 | J24: =VLOOKUP(A24,[3]RAW!$C$17:$BK$8270,60,FALSE) -> -33.90722222 | K24: =VLOOKUP(A24,[3]RAW!$C$17:$BK$8270,61,FALSE) -> 19.07305556 | L24: x | M24: x | N24: x | O24: x | P24: x | Q24: x | R24: x | S24: x | T24: x | Z24: x | AI24: x | AK24: Seapoint
A25: GABA | B25: =VLOOKUP(A25,'[1]RSG Sites'!$A$2:$F$133,6,FALSE) ->  | C25: =VLOOKUP(A25,[2]RAW!$C$2:$O$8276,13,FALSE) -> LP | D25: =VLOOKUP(A25,[2]RAW!$C$2:$J$8276,3,FALSE) -> -22 | E25: =VLOOKUP(A25,[2]RAW!$C$2:$J$8276,4,FALSE) -> -47 | F25: =VLOOKUP(A25,[2]RAW!$C$2:$J$8276,5,FALSE) -> -2 | G25: =VLOOKUP(A25,[2]RAW!$C$2:$J$8276,6,FALSE) -> 30 | H25: =VLOOKUP(A25,[2]RAW!$C$2:$J$8276,7,FALSE) -> 42 | I25: =VLOOKUP(A25,[2]RAW!$C$2:$J$8276,8,FALSE) -> 25 | J25: =VLOOKUP(A25,[3]RAW!$C$17:$BK$8270,60,FALSE) -> -22.78388889 | K25: =VLOOKUP(A25,[3]RAW!$C$17:$BK$8270,61,FALSE) -> 30.70694444 | M25: x | N25: x | Q25: x | AD25: x | AF25: x | AI25: x | AK25: Thohoyandou
A26: GEORGE | B26: =VLOOKUP(A26,'[1]RSG Sites'!$A$2:$F$133,6,FALSE) -> Gold | C26: =VLOOKUP(A26,[2]RAW!$C$2:$O$8276,13,FALSE) -> WC | D26: =VLOOKUP(A26,[2]RAW!$C$2:$J$8276,3,FALSE) -> -33 | E26: =VLOOKUP(A26,[2]RAW!$C$2:$J$8276,4,FALSE) -> -55 | F26: =VLOOKUP(A26,[2]RAW!$C$2:$J$8276,5,FALSE) -> -38 | G26: =VLOOKUP(A26,[2]RAW!$C$2:$J$8276,6,FALSE) -> 22 | H26: =VLOOKUP(A26,[2]RAW!$C$2:$J$8276,7,FALSE) -> 27 | I26: =VLOOKUP(A26,[2]RAW!$C$2:$J$8276,8,FALSE) -> 3 | J26: =VLOOKUP(A26,[3]RAW!$C$17:$BK$8270,60,FALSE) -> -33.92722222 | K26: =VLOOKUP(A26,[3]RAW!$C$17:$BK$8270,61,FALSE) -> 22.45083333 | L26: x | M26: x | N26: x | O26: x | P26: x | Q26: x | R26: x | S26: x | T26: x | W26: x | Y26: x | AI26: x | AK26: George
A27: GRABOUW | B27: =VLOOKUP(A27,'[1]RSG Sites'!$A$2:$F$133,6,FALSE) -> Silver | C27: =VLOOKUP(A27,[2]RAW!$C$2:$O$8276,13,FALSE) -> WC | D27: =VLOOKUP(A27,[2]RAW!$C$2:$J$8276,3,FALSE) -> -34 | E27: =VLOOKUP(A27,[2]RAW!$C$2:$J$8276,4,FALSE) -> -6 | F27: =VLOOKUP(A27,[2]RAW!$C$2:$J$8276,5,FALSE) -> -7 | G27: =VLOOKUP(A27,[2]RAW!$C$2:$J$8276,6,FALSE) -> 18 | H27: =VLOOKUP(A27,[2]RAW!$C$2:$J$8276,7,FALSE) -> 58 | I27: =VLOOKUP(A27,[2]RAW!$C$2:$J$8276,8,FALSE) -> 0 | J27: =VLOOKUP(A27,[3]RAW!$C$17:$BK$8270,60,FALSE) -> -34.10194444 | K27: =VLOOKUP(A27,[3]RAW!$C$17:$BK$8270,61,FALSE) -> 18.96666667 | L27: x | M27: x | N27: x | O27: x | Q27: x | R27: x | S27: x | AI27: x | AK27: Seapoint
A28: GRAHAMSTOWN | B28: =VLOOKUP(A28,'[1]RSG Sites'!$A$2:$F$133,6,FALSE) -> Gold | C28: =VLOOKUP(A28,[2]RAW!$C$2:$O$8276,13,FALSE) -> EC | D28: =VLOOKUP(A28,[2]RAW!$C$2:$J$8276,3,FALSE) -> -33 | E28: =VLOOKUP(A28,[2]RAW!$C$2:$J$8276,4,FALSE) -> -19 | F28: =VLOOKUP(A28,[2]RAW!$C$2:$J$8276,5,FALSE) -> -42 | G28: =VLOOKUP(A28,[2]RAW!$C$2:$J$8276,6,FALSE) -> 26 | H28: =VLOOKUP(A28,[2]RAW!$C$2:$J$8276,7,FALSE) -> 30 | I28: =VLOOKUP(A28,[2]RAW!$C$2:$J$8276,8,FALSE) -> 4 | J28: =VLOOKUP(A28,[3]RAW!$C$17:$BK$8270,60,FALSE) -> -33.2875 | K28: =VLOOKUP(A28,[3]RAW!$C$17:$BK$8270,61,FALSE) -> 26.70861111 | L28: x | M28: x | N28: x | O28: x | P28: x | Q28: x | R28: x | S28: x | T28: x | Y28: x | AI28: x | AK28: Port Elizabeth
A29: GROOT BRAKRIVIER | B29: =VLOOKUP(A29,'[1]RSG Sites'!$A$2:$F$133,6,FALSE) ->  | C29: =VLOOKUP(A29,[2]RAW!$C$2:$O$8276,13,FALSE) -> WC | D29: =VLOOKUP(A29,[2]RAW!$C$2:$J$8276,3,FALSE) -> -34 | E29: =VLOOKUP(A29,[2]RAW!$C$2:$J$8276,4,FALSE) -> -1 | F29: =VLOOKUP(A29,[2]RAW!$C$2:$J$8276,5,FALSE) -> -55 | G29: =VLOOKUP(A29,[2]RAW!$C$2:$J$8276,6,FALSE) -> 22 | H29: =VLOOKUP(A29,[2]RAW!$C$2:$J$8276,7,FALSE) -> 12 | I29: =VLOOKUP(A29,[2]RAW!$C$2:$J$8276,8,FALSE) -> 57 | J29: =VLOOKUP(A29,[3]RAW!$C$17:$BK$8270,60,FALSE) -> -34.03194444 | K29: =VLOOKUP(A29,[3]RAW!$C$17:$BK$8270,61,FALSE) -> 22.21583333 | M29: x | N29: x | O29: x | Q29: x | AI29: x | AK29: George
A30: GROOT MARICO | B30: =VLOOKUP(A30,'[1]RSG Sites'!$A$2:$F$133,6,FALSE) -> Bronze | C30: =VLOOKUP(A30,[2]RAW!$C$2:$O$8276,13,FALSE) -> NW | D30: =VLOOKUP(A30,[2]RAW!$C$2:$J$8276,3,FALSE) -> -25 | E30: =VLOOKUP(A30,[2]RAW!$C$2:$J$8276,4,FALSE) -> -37 | F30: =VLOOKUP(A30,[2]RAW!$C$2:$J$8276,5,FALSE) -> -11 | G30: =VLOOKUP(A30,[2]RAW!$C$2:$J$8276,6,FALSE) -> 26 | H30: =VLOOKUP(A30,[2]RAW!$C$2:$J$8276,7,FALSE) -> 26 | I30: =VLOOKUP(A30,[2]RAW!$C$2:$J$8276,8,FALSE) -> 8 | J30: =VLOOKUP(A30,[3]RAW!$C$17:$BK$8270,60,FALSE) -> -25.61972222 | K30: =VLOOKUP(A30,[3]RAW!$C$17:$BK$8270,61,FALSE) -> 26.43555556 | L30: x | N30: x | Q30: x | S30: x | AE30: x | AI30: x | AK30: Mahikeng
A31: HAENERTSBURG | B31: =VLOOKUP(A31,'[1]RSG Sites'!$A$2:$F$133,6,FALSE) ->  | C31: =VLOOKUP(A31,[2]RAW!$C$2:$O$8276,13,FALSE) -> LP | D31: =VLOOKUP(A31,[2]RAW!$C$2:$J$8276,3,FALSE) -> -23 | E31: =VLOOKUP(A31,[2]RAW!$C$2:$J$8276,4,FALSE) -> -59 | F31: =VLOOKUP(A31,[2]RAW!$C$2:$J$8276,5,FALSE) -> -54 | G31: =VLOOKUP(A31,[2]RAW!$C$2:$J$8276,6,FALSE) -> 29 | H31: =VLOOKUP(A31,[2]RAW!$C$2:$J$8276,7,FALSE) -> 56 | I31: =VLOOKUP(A31,[2]RAW!$C$2:$J$8276,8,FALSE) -> 48 | J31: =VLOOKUP(A31,[3]RAW!$C$17:$BK$8270,60,FALSE) -> -23.99833333 | K31: =VLOOKUP(A31,[3]RAW!$C$17:$BK$8270,61,FALSE) -> 29.94666667 | AG31: x | AI31: x | AK31: Polokwane
A32: HANKEY | B32: =VLOOKUP(A32,'[1]RSG Sites'!$A$2:$F$133,6,FALSE) -> Bronze | C32: =VLOOKUP(A32,[2]RAW!$C$2:$O$8276,13,FALSE) -> EC | D32: =VLOOKUP(A32,[2]RAW!$C$2:$J$8276,3,FALSE) -> -33 | E32: =VLOOKUP(A32,[2]RAW!$C$2:$J$8276,4,FALSE) -> -49 | F32: =VLOOKUP(A32,[2]RAW!$C$2:$J$8276,5,FALSE) -> -52 | G32: =VLOOKUP(A32,[2]RAW!$C$2:$J$8276,6,FALSE) -> 24 | H32: =VLOOKUP(A32,[2]RAW!$C$2:$J$8276,7,FALSE) -> 52 | I32: =VLOOKUP(A32,[2]RAW!$C$2:$J$8276,8,FALSE) -> 12 | J32: =VLOOKUP(A32,[3]RAW!$C$17:$BK$8270,60,FALSE) -> -33.83111111 | K32: =VLOOKUP(A32,[3]RAW!$C$17:$BK$8270,61,FALSE) -> 24.87 | L32: x | M32: x | N32: x | O32: x | Q32: x | S32: x | T32: x | AI32: x | AK32: Port Elizabeth
A33: HECTORSPRUIT | B33: =VLOOKUP(A33,'[1]RSG Sites'!$A$2:$F$133,6,FALSE) ->  | C33: =VLOOKUP(A33,[2]RAW!$C$2:$O$8276,13,FALSE) -> MP | D33: =VLOOKUP(A33,[2]RAW!$C$2:$J$8276,3,FALSE) -> -25 | E33: =VLOOKUP(A33,[2]RAW!$C$2:$J$8276,4,FALSE) -> -28 | F33: =VLOOKUP(A33,[2]RAW!$C$2:$J$8276,5,FALSE) -> -47 | G33: =VLOOKUP(A33,[2]RAW!$C$2:$J$8276,6,FALSE) -> 31 | H33: =VLOOKUP(A33,[2]RAW!$C$2:$J$8276,7,FALSE) -> 36 | I33: =VLOOKUP(A33,[2]RAW!$C$2:$J$8276,8,FALSE) -> 20 | J33: =VLOOKUP(A33,[3]RAW!$C$17:$BK$8270,60,FALSE) -> -25.47972222 | K33: =VLOOKUP(A33,[3]RAW!$C$17:$BK$8270,61,FALSE) -> 31.60555556 | M33: x | N33: x | Q33: x | AB33: x | AI33: x | AK33: Nelspruit
A34: HEIDELBERG | B34: =VLOOKUP(A34,'[1]RSG Sites'!$A$2:$F$133,6,FALSE) -> Silver | C34: =VLOOKUP(A34,[2]RAW!$C$2:$O$8276,13,FALSE) -> GP | D34: =VLOOKUP(A34,[2]RAW!$C$2:$J$8276,3,FALSE) -> -26 | E34: =VLOOKUP(A34,[2]RAW!$C$2:$J$8276,4,FALSE) -> -29 | F34: =VLOOKUP(A34,[2]RAW!$C$2:$J$8276,5,FALSE) -> -19 | G34: =VLOOKUP(A34,[2]RAW!$C$2:$J$8276,6,FALSE) -> 28 | H34: =VLOOKUP(A34,[2]RAW!$C$2:$J$8276,7,FALSE) -> 20 | I34: =VLOOKUP(A34,[2]RAW!$C$2:$J$8276,8,FALSE) -> 48 | J34: =VLOOKUP(A34,[3]RAW!$C$17:$BK$8270,60,FALSE) -> -26.48861111 | K34: =VLOOKUP(A34,[3]RAW!$C$17:$BK$8270,61,FALSE) -> 28.34666667 | L34: x | M34: x | N34: x | O34: x | P34: x | Q34: x | R34: x | S34: x | U34: x | W34: x | AI34: x | AK34: Aucklandpark
A35: HELDERKRUIN | B35: =VLOOKUP(A35,'[1]RSG Sites'!$A$2:$F$133,6,FALSE) ->  | C35: =VLOOKUP(A35,[2]RAW!$C$2:$O$8276,13,FALSE) -> GP | D35: =VLOOKUP(A35,[2]RAW!$C$2:$J$8276,3,FALSE) -> -26 | E35: =VLOOKUP(A35,[2]RAW!$C$2:$J$8276,4,FALSE) -> -6 | F35: =VLOOKUP(A35,[2]RAW!$C$2:$J$8276,5,FALSE) -> -5 | G35: =VLOOKUP(A35,[2]RAW!$C$2:$J$8276,6,FALSE) -> 27 | H35: =VLOOKUP(A35,[2]RAW!$C$2:$J$8276,7,FALSE) -> 51 | I35: =VLOOKUP(A35,[2]RAW!$C$2:$J$8276,8,FALSE) -> 27 | J35: =VLOOKUP(A35,[3]RAW!$C$17:$BK$8270,60,FALSE) -> -26.10138889 | K35: =VLOOKUP(A35,[3]RAW!$C$17:$BK$8270,61,FALSE) -> 27.8575 | M35: x | N35: x | Q35: x | R35: x | Y35: x | AI35: x | AK35: Aucklandpark
A36: HOLY CROSS | B36: =VLOOKUP(A36,'[1]RSG Sites'!$A$2:$F$133,6,FALSE) ->  | C36: =VLOOKUP(A36,[2]RAW!$C$2:$O$8276,13,FALSE) -> EC | D36: =VLOOKUP(A36,[2]RAW!$C$2:$J$8276,3,FALSE) -> -31 | E36: =VLOOKUP(A36,[2]RAW!$C$2:$J$8276,4,FALSE) -> -8 | F36: =VLOOKUP(A36,[2]RAW!$C$2:$J$8276,5,FALSE) -> -25 | G36: =VLOOKUP(A36,[2]RAW!$C$2:$J$8276,6,FALSE) -> 29 | H36: =VLOOKUP(A36,[2]RAW!$C$2:$J$8276,7,FALSE) -> 29 | I36: =VLOOKUP(A36,[2]RAW!$C$2:$J$8276,8,FALSE) -> 27 | J36: =VLOOKUP(A36,[3]RAW!$C$17:$BK$8270,60,FALSE) -> -31.14027778 | K36: =VLOOKUP(A36,[3]RAW!$C$17:$BK$8270,61,FALSE) -> 29.49083333 | Q36: x | T36: x | AJ36: x | AK36: Mthatha
A37: HOUT BAY | B37: =VLOOKUP(A37,'[1]RSG Sites'!$A$2:$F$133,6,FALSE) -> Silver | C37: =VLOOKUP(A37,[2]RAW!$C$2:$O$8276,13,FALSE) -> WC | D37: =VLOOKUP(A37,[2]RAW!$C$2:$J$8276,3,FALSE) -> -34 | E37: =VLOOKUP(A37,[2]RAW!$C$2:$J$8276,4,FALSE) -> 0 | F37: =VLOOKUP(A37,[2]RAW!$C$2:$J$8276,5,FALSE) -> -46 | G37: =VLOOKUP(A37,[2]RAW!$C$2:$J$8276,6,FALSE) -> 18 | H37: =VLOOKUP(A37,[2]RAW!$C$2:$J$8276,7,FALSE) -> 20 | I37: =VLOOKUP(A37,[2]RAW!$C$2:$J$8276,8,FALSE) -> 51 | J37: =VLOOKUP(A37,[3]RAW!$C$17:$BK$8270,60,FALSE) -> -34.01277778 | K37: =VLOOKUP(A37,[3]RAW!$C$17:$BK$8270,61,FALSE) -> 18.3475 | L37: x | M37: x | N37: x | O37: x | P37: x | Q37: x | R37: x | S37: x | Y37: x | Z37: x | AI37: x | AK37: Seapoint
A38: JAGERSFONTEIN | B38: =VLOOKUP(A38,'[1]RSG Sites'!$A$2:$F$133,6,FALSE) ->  | C38: =VLOOKUP(A38,[2]RAW!$C$2:$O$8276,13,FALSE) -> FS | D38: =VLOOKUP(A38,[2]RAW!$C$2:$J$8276,3,FALSE) -> -29 | E38: =VLOOKUP(A38,[2]RAW!$C$2:$J$8276,4,FALSE) -> -45 | F38: =VLOOKUP(A38,[2]RAW!$C$2:$J$8276,5,FALSE) -> -23 | G38: =VLOOKUP(A38,[2]RAW!$C$2:$J$8276,6,FALSE) -> 25 | H38: =VLOOKUP(A38,[2]RAW!$C$2:$J$8276,7,FALSE) -> 25 | I38: =VLOOKUP(A38,[2]RAW!$C$2:$J$8276,8,FALSE) -> 47 | J38: =VLOOKUP(A38,[3]RAW!$C$17:$BK$8270,60,FALSE) -> -29.75638889 | K38: =VLOOKUP(A38,[3]RAW!$C$17:$BK$8270,61,FALSE) -> 25.42972222 | M38: x | N38: x | O38: x | U38: x | AI38: x | AK38: Bloemfontein
A39: JOHANNESBURG | B39: =VLOOKUP(A39,'[1]RSG Sites'!$A$2:$F$133,6,FALSE) -> Platinum | C39: =VLOOKUP(A39,[2]RAW!$C$2:$O$8276,13,FALSE) -> GP | D39: =VLOOKUP(A39,[2]RAW!$C$2:$J$8276,3,FALSE) -> -26 | E39: =VLOOKUP(A39,[2]RAW!$C$2:$J$8276,4,FALSE) -> -11 | F39: =VLOOKUP(A39,[2]RAW!$C$2:$J$8276,5,FALSE) -> -31 | G39: =VLOOKUP(A39,[2]RAW!$C$2:$J$8276,6,FALSE) -> 28 | H39: =VLOOKUP(A39,[2]RAW!$C$2:$J$8276,7,FALSE) -> 0 | I39: =VLOOKUP(A39,[2]RAW!$C$2:$J$8276,8,FALSE) -> 26 | J39: =VLOOKUP(A39,[3]RAW!$C$17:$BK$8270,60,FALSE) -> -26.19194444 | K39: =VLOOKUP(A39,[3]RAW!$C$17:$BK$8270,61,FALSE) -> 28.00722222 | L39: x | M39: x | N39: x | O39: x | P39: x | Q39: x | R39: x | S39: x | T39: x | U39: x | W39: x | X39: x | Y39: x | AA39: x | AC39: x | AD39: x | AE39: x | AF39: x | AG39: x | AI39: x | AK39: Aucklandpark
A40: KAREEDOUW | B40: =VLOOKUP(A40,'[1]RSG Sites'!$A$2:$F$133,6,FALSE) -> Silver | C40: =VLOOKUP(A40,[2]RAW!$C$2:$O$8276,13,FALSE) -> EC | D40: =VLOOKUP(A40,[2]RAW!$C$2:$J$8276,3,FALSE) -> -33 | E40: =VLOOKUP(A40,[2]RAW!$C$2:$J$8276,4,FALSE) -> -57 | F40: =VLOOKUP(A40,[2]RAW!$C$2:$J$8276,5,FALSE) -> -48 | G40: =VLOOKUP(A40,[2]RAW!$C$2:$J$8276,6,FALSE) -> 24 | H40: =VLOOKUP(A40,[2]RAW!$C$2:$J$8276,7,FALSE) -> 17 | I40: =VLOOKUP(A40,[2]RAW!$C$2:$J$8276,8,FALSE) -> 15 | J40: =VLOOKUP(A40,[3]RAW!$C$17:$BK$8270,60,FALSE) -> -34.02472222 | K40: =VLOOKUP(A40,[3]RAW!$C$17:$BK$8270,61,FALSE) -> 24.43 | L40: x | M40: x | N40: x | Q40: x | S40: x | T40: x | AI40: x | AK40: Port Elizabeth
A41: KIMBERLEY | B41: =VLOOKUP(A41,'[1]RSG Sites'!$A$2:$F$133,6,FALSE) -> Gold | C41: =VLOOKUP(A41,[2]RAW!$C$2:$O$8276,13,FALSE) -> FS | D41: =VLOOKUP(A41,[2]RAW!$C$2:$J$8276,3,FALSE) -> -28 | E41: =VLOOKUP(A41,[2]RAW!$C$2:$J$8276,4,FALSE) -> -51 | F41: =VLOOKUP(A41,[2]RAW!$C$2:$J$8276,5,FALSE) -> 0 | G41: =VLOOKUP(A41,[2]RAW!$C$2:$J$8276,6,FALSE) -> 24 | H41: =VLOOKUP(A41,[2]RAW!$C$2:$J$8276,7,FALSE) -> 54 | I41: =VLOOKUP(A41,[2]RAW!$C$2:$J$8276,8,FALSE) -> 0 | J41: =VLOOKUP(A41,[3]RAW!$C$17:$BK$8270,60,FALSE) -> -28.85416667 | K41: =VLOOKUP(A41,[3]RAW!$C$17:$BK$8270,61,FALSE) -> 24.90472222 | L41: x | M41: x | N41: x | O41: x | P41: x | Q41: x | R41: x | S41: x | T41: x | U41: x | X41: x | Y41: x | AE41: x | AI41: x | AK41: Kimbely
A42: KING WILLIAMS TOWN | B42: =VLOOKUP(A42,'[1]RSG Sites'!$A$2:$F$133,6,FALSE) -> Silver | C42: =VLOOKUP(A42,[2]RAW!$C$2:$O$8276,13,FALSE) -> EC | D42: =VLOOKUP(A42,[2]RAW!$C$2:$J$8276,3,FALSE) -> -32 | E42: =VLOOKUP(A42,[2]RAW!$C$2:$J$8276,4,FALSE) -> -51 | F42: =VLOOKUP(A42,[2]RAW!$C$2:$J$8276,5,FALSE) -> -36 | G42: =VLOOKUP(A42,[2]RAW!$C$2:$J$8276,6,FALSE) -> 27 | H42: =VLOOKUP(A42,[2]RAW!$C$2:$J$8276,7,FALSE) -> 24 | I42: =VLOOKUP(A42,[2]RAW!$C$2:$J$8276,8,FALSE) -> 50 | J42: =VLOOKUP(A42,[3]RAW!$C$17:$BK$8270,60,FALSE) -> -32.67888889 | K42: =VLOOKUP(A42,[3]RAW!$C$17:$BK$8270,61,FALSE) -> 27.26 | L42: x | M42: x | N42: x | O42: x | Q42: x | R42: x | S42: x | T42: x | AH42: x | AI42: x | AK42: Eastlondon
A43: KIRKWOOD | B43: =VLOOKUP(A43,'[1]RSG Sites'!$A$2:$F$133,6,FALSE) ->  | C43: =VLOOKUP(A43,[2]RAW!$C$2:$O$8276,13,FALSE) -> EC | D43: =VLOOKUP(A43,[2]RAW!$C$2:$J$8276,3,FALSE) -> -33 | E43: =VLOOKUP(A43,[2]RAW!$C$2:$J$8276,4,FALSE) -> -23 | F43: =VLOOKUP(A43,[2]RAW!$C$2:$J$8276,5,FALSE) -> -22 | G43: =VLOOKUP(A43,[2]RAW!$C$2:$J$8276,6,FALSE) -> 25 | H43: =VLOOKUP(A43,[2]RAW!$C$2:$J$8276,7,FALSE) -> 26 | I43: =VLOOKUP(A43,[2]RAW!$C$2:$J$8276,8,FALSE) -> 53 | J43: =VLOOKUP(A43,[3]RAW!$C$17:$BK$8270,60,FALSE) -> -33.4025 | K43: =VLOOKUP(A43,[3]RAW!$C$17:$BK$8270,61,FALSE) -> 25.52472222 | N43: x | Q43: x | AI43: x | AK43: Port Elizabeth
A44: KNYSNA | B44: =VLOOKUP(A44,'[1]RSG Sites'!$A$2:$F$133,6,FALSE) -> Silver | C44: =VLOOKUP(A44,[2]RAW!$C$2:$O$8276,13,FALSE) -> WC | D44: =VLOOKUP(A44,[2]RAW!$C$2:$J$8276,3,FALSE) -> -34 | E44: =VLOOKUP(A44,[2]RAW!$C$2:$J$8276,4,FALSE) -> -4 | F44: =VLOOKUP(A44,[2]RAW!$C$2:$J$8276,5,FALSE) -> -38 | G44: =VLOOKUP(A44,[2]RAW!$C$2:$J$8276,6,FALSE) -> 23 | H44: =VLOOKUP(A44,[2]RAW!$C$2:$J$8276,7,FALSE) -> 2 | I44: =VLOOKUP(A44,[2]RAW!$C$2:$J$8276,8,FALSE) -> 58 | J44: =VLOOKUP(A44,[3]RAW!$C$17:$BK$8270,60,FALSE) -> -34.07138889 | K44: =VLOOKUP(A44,[3]RAW!$C$17:$BK$8270,61,FALSE) -> 23.04194444 | L44: x | M44: x | N44: x | O44: x | P44: x | Q44: x | R44: x | S44: x | T44: x | AA44: x | AI44: x | AK44: George
A45: KOMGA | B45: =VLOOKUP(A45,'[1]RSG Sites'!$A$2:$F$133,6,FALSE) ->  | C45: =VLOOKUP(A45,[2]RAW!$C$2:$O$8276,13,FALSE) -> EC | D45: =VLOOKUP(A45,[2]RAW!$C$2:$J$8276,3,FALSE) -> -32 | E45: =VLOOKUP(A45,[2]RAW!$C$2:$J$8276,4,FALSE) -> -33 | F45: =VLOOKUP(A45,[2]RAW!$C$2:$J$8276,5,FALSE) -> -44 | G45: =VLOOKUP(A45,[2]RAW!$C$2:$J$8276,6,FALSE) -> 27 | H45: =VLOOKUP(A45,[2]RAW!$C$2:$J$8276,7,FALSE) -> 51 | I45: =VLOOKUP(A45,[2]RAW!$C$2:$J$8276,8,FALSE) -> 45 | J45: =VLOOKUP(A45,[3]RAW!$C$17:$BK$8270,60,FALSE) -> -32.56222222 | K45: =VLOOKUP(A45,[3]RAW!$C$17:$BK$8270,61,FALSE) -> 27.8625 | T45: x | AI45: x | AK45: Eastlondon
A46: KWAGGAFONTEIN | B46: =VLOOKUP(A46,'[1]RSG Sites'!$A$2:$F$133,6,FALSE) ->  | C46: =VLOOKUP(A46,[2]RAW!$C$2:$O$8276,13,FALSE) -> MP | D46: =VLOOKUP(A46,[2]RAW!$C$2:$J$8276,3,FALSE) -> -25 | E46: =VLOOKUP(A46,[2]RAW!$C$2:$J$8276,4,FALSE) -> -14 | F46: =VLOOKUP(A46,[2]RAW!$C$2:$J$8276,5,FALSE) -> -37 | G46: =VLOOKUP(A46,[2]RAW!$C$2:$J$8276,6,FALSE) -> 28 | H46: =VLOOKUP(A46,[2]RAW!$C$2:$J$8276,7,FALSE) -> 57 | I46: =VLOOKUP(A46,[2]RAW!$C$2:$J$8276,8,FALSE) -> 27 | J46: =VLOOKUP(A46,[3]RAW!$C$17:$BK$8270,60,FALSE) -> -25.24361111 | K46: =VLOOKUP(A46,[3]RAW!$C$17:$BK$8270,61,FALSE) -> 28.9575 | AA46: x | AG46: x | AI46: x | AK46: Hatfield
A47: KWAMHLANGA | B47: =VLOOKUP(A47,'[1]RSG Sites'!$A$2:$F$133,6,FALSE) ->  | C47: =VLOOKUP(A47,[2]RAW!$C$2:$O$8276,13,FALSE) -> MP | D47: =VLOOKUP(A47,[2]RAW!$C$2:$J$8276,3,FALSE) -> -25 | E47: =VLOOKUP(A47,[2]RAW!$C$2:$J$8276,4,FALSE) -> -26 | F47: =VLOOKUP(A47,[2]RAW!$C$2:$J$8276,5,FALSE) -> -22 | G47: =VLOOKUP(A47,[2]RAW!$C$2:$J$8276,6,FALSE) -> 28 | H47: =VLOOKUP(A47,[2]RAW!$C$2:$J$8276,7,FALSE) -> 30 | I47: =VLOOKUP(A47,[2]RAW!$C$2:$J$8276,8,FALSE) -> 49 | J47: =VLOOKUP(A47,[3]RAW!$C$17:$BK$8270,60,FALSE) -> -25.43944444 | K47: =VLOOKUP(A47,[3]RAW!$C$17:$BK$8270,61,FALSE) -> 28.51361111 | AA47: x | AI47: x | AK47: Hatfield
A48: LADYBRAND | B48: =VLOOKUP(A48,'[1]RSG Sites'!$A$2:$F$133,6,FALSE) -> Silver | C48: =VLOOKUP(A48,[2]RAW!$C$2:$O$8276,13,FALSE) -> FS | D48: =VLOOKUP(A48,[2]RAW!$C$2:$J$8276,3,FALSE) -> -29 | E48: =VLOOKUP(A48,[2]RAW!$C$2:$J$8276,4,FALSE) -> -10 | F48: =VLOOKUP(A48,[2]RAW!$C$2:$J$8276,5,FALSE) -> -18 | G48: =VLOOKUP(A48,[2]RAW!$C$2:$J$8276,6,FALSE) -> 27 | H48: =VLOOKUP(A48,[2]RAW!$C$2:$J$8276,7,FALSE) -> 22 | I48: =VLOOKUP(A48,[2]RAW!$C$2:$J$8276,8,FALSE) -> 42 | J48: =VLOOKUP(A48,[3]RAW!$C$17:$BK$8270,60,FALSE) -> -29.17166667 | K48: =VLOOKUP(A48,[3]RAW!$C$17:$BK$8270,61,FALSE) -> 27.37833333 | L48: x | M48: x | N48: x | Q48: x | R48: x | S48: x | U48: x | AI48: x | AK48: Bloemfontein
A49: LINMEYER | B49: =VLOOKUP(A49,'[1]RSG Sites'!$A$2:$F$133,6,FALSE) ->  | C49: =VLOOKUP(A49,[2]RAW!$C$2:$O$8276,13,FALSE) -> GP | D49: =VLOOKUP(A49,[2]RAW!$C$2:$J$8276,3,FALSE) -> -26 | E49: =VLOOKUP(A49,[2]RAW!$C$2:$J$8276,4,FALSE) -> -16 | F49: =VLOOKUP(A49,[2]RAW!$C$2:$J$8276,5,FALSE) -> -8 | G49: =VLOOKUP(A49,[2]RAW!$C$2:$J$8276,6,FALSE) -> 28 | H49: =VLOOKUP(A49,[2]RAW!$C$2:$J$8276,7,FALSE) -> 4 | I49: =VLOOKUP(A49,[2]RAW!$C$2:$J$8276,8,FALSE) -> 16 | J49: =VLOOKUP(A49,[3]RAW!$C$17:$BK$8270,60,FALSE) -> -26.26888889 | K49: =VLOOKUP(A49,[3]RAW!$C$17:$BK$8270,61,FALSE) -> 28.07111111 | M49: x | N49: x | O49: x | Q49: x | R49: x | AI49: x | AK49: Aucklandpark
A50: LOUIS TRICHARDT | B50: =VLOOKUP(A50,'[1]RSG Sites'!$A$2:$F$133,6,FALSE) -> Silver | C50: =VLOOKUP(A50,[2]RAW!$C$2:$O$8276,13,FALSE) -> LP | D50: =VLOOKUP(A50,[2]RAW!$C$2:$J$8276,3,FALSE) -> -23 | E50: =VLOOKUP(A50,[2]RAW!$C$2:$J$8276,4,FALSE) -> 0 | F50: =VLOOKUP(A50,[2]RAW!$C$2:$J$8276,5,FALSE) -> -2 | G50: =VLOOKUP(A50,[2]RAW!$C$2:$J$8276,6,FALSE) -> 29 | H50: =VLOOKUP(A50,[2]RAW!$C$2:$J$8276,7,FALSE) -> 45 | I50: =VLOOKUP(A50,[2]RAW!$C$2:$J$8276,8,FALSE) -> 26 | J50: =VLOOKUP(A50,[3]RAW!$C$17:$BK$8270,60,FALSE) -> -23.00055556 | K50: =VLOOKUP(A50,[3]RAW!$C$17:$BK$8270,61,FALSE) -> 29.75722222 | L50: x | M50: x | N50: x | O50: x | P50: x | Q50: x | R50: x | S50: x | AD50: x | AF50: x | AG50: x | AI50: x | AK50: Polokwane
A51: LYDENBURG | B51: =VLOOKUP(A51,'[1]RSG Sites'!$A$2:$F$133,6,FALSE) -> Bronze | C51: =VLOOKUP(A51,[2]RAW!$C$2:$O$8276,13,FALSE) -> MP | D51: =VLOOKUP(A51,[2]RAW!$C$2:$J$8276,3,FALSE) -> -25 | E51: =VLOOKUP(A51,[2]RAW!$C$2:$J$8276,4,FALSE) -> -6 | F51: =VLOOKUP(A51,[2]RAW!$C$2:$J$8276,5,FALSE) -> -20 | G51: =VLOOKUP(A51,[2]RAW!$C$2:$J$8276,6,FALSE) -> 30 | H51: =VLOOKUP(A51,[2]RAW!$C$2:$J$8276,7,FALSE) -> 26 | I51: =VLOOKUP(A51,[2]RAW!$C$2:$J$8276,8,FALSE) -> 3 | J51: =VLOOKUP(A51,[3]RAW!$C$17:$BK$8270,60,FALSE) -> -25.10555556 | K51: =VLOOKUP(A51,[3]RAW!$C$17:$BK$8270,61,FALSE) -> 30.43416667 | L51: x | N51: x | Q51: x | S51: x | AB51: x | AI51: x | AK51: Nelspruit
A52: MADIBOGO | B52: =VLOOKUP(A52,'[1]RSG Sites'!$A$2:$F$133,6,FALSE) ->  | C52: =VLOOKUP(A52,[2]RAW!$C$2:$O$8276,13,FALSE) -> NW | D52: =VLOOKUP(A52,[2]RAW!$C$2:$J$8276,3,FALSE) -> -26 | E52: =VLOOKUP(A52,[2]RAW!$C$2:$J$8276,4,FALSE) -> -27 | F52: =VLOOKUP(A52,[2]RAW!$C$2:$J$8276,5,FALSE) -> -28 | G52: =VLOOKUP(A52,[2]RAW!$C$2:$J$8276,6,FALSE) -> 25 | H52: =VLOOKUP(A52,[2]RAW!$C$2:$J$8276,7,FALSE) -> 15 | I52: =VLOOKUP(A52,[2]RAW!$C$2:$J$8276,8,FALSE) -> 14 | J52: =VLOOKUP(A52,[3]RAW!$C$17:$BK$8270,60,FALSE) -> -26.45777778 | K52: =VLOOKUP(A52,[3]RAW!$C$17:$BK$8270,61,FALSE) -> 25.25388889 | M52: x | N52: x | Q52: x | AE52: x | AI52: x | AK52: Mahikeng
A53: MALAMBA | B53: =VLOOKUP(A53,'[1]RSG Sites'!$A$2:$F$133,6,FALSE) ->  | C53: =VLOOKUP(A53,[2]RAW!$C$2:$O$8276,13,FALSE) -> LP | D53: =VLOOKUP(A53,[2]RAW!$C$2:$J$8276,3,FALSE) -> -22 | E53: =VLOOKUP(A53,[2]RAW!$C$2:$J$8276,4,FALSE) -> -53 | F53: =VLOOKUP(A53,[2]RAW!$C$2:$J$8276,5,FALSE) -> -56 | G53: =VLOOKUP(A53,[2]RAW!$C$2:$J$8276,6,FALSE) -> 30 | H53: =VLOOKUP(A53,[2]RAW!$C$2:$J$8276,7,FALSE) -> 15 | I53: =VLOOKUP(A53,[2]RAW!$C$2:$J$8276,8,FALSE) -> 9 | J53: =VLOOKUP(A53,[3]RAW!$C$17:$BK$8270,60,FALSE) -> -22.89888889 | K53: =VLOOKUP(A53,[3]RAW!$C$17:$BK$8270,61,FALSE) -> 30.2525 | M53: x | N53: x | Q53: x | AD53: x | AI53: x | AK53: Thohoyandou
A54: MATATIELE | B54: =VLOOKUP(A54,'[1]RSG Sites'!$A$2:$F$133,6,FALSE) -> Silver | C54: =VLOOKUP(A54,[2]RAW!$C$2:$O$8276,13,FALSE) -> EC | D54: =VLOOKUP(A54,[2]RAW!$C$2:$J$8276,3,FALSE) -> -30 | E54: =VLOOKUP(A54,[2]RAW!$C$2:$J$8276,4,FALSE) -> -23 | F54: =VLOOKUP(A54,[2]RAW!$C$2:$J$8276,5,FALSE) -> -45 | G54: =VLOOKUP(A54,[2]RAW!$C$2:$J$8276,6,FALSE) -> 28 | H54: =VLOOKUP(A54,[2]RAW!$C$2:$J$8276,7,FALSE) -> 49 | I54: =VLOOKUP(A54,[2]RAW!$C$2:$J$8276,8,FALSE) -> 19 | J54: =VLOOKUP(A54,[3]RAW!$C$17:$BK$8270,60,FALSE) -> -30.39583333 | K54: =VLOOKUP(A54,[3]RAW!$C$17:$BK$8270,61,FALSE) -> 28.82194444 | L54: x | M54: x | N54: x | O54: x | Q54: x | R54: x | S54: x | U54: x | AJ54: x | AK54: Mthatha
A55: MENLO PARK | B55: =VLOOKUP(A55,'[1]RSG Sites'!$A$2:$F$133,6,FALSE) -> Silver | C55: =VLOOKUP(A55,[2]RAW!$C$2:$O$8276,13,FALSE) -> GP | D55: =VLOOKUP(A55,[2]RAW!$C$2:$J$8276,3,FALSE) -> -25 | E55: =VLOOKUP(A55,[2]RAW!$C$2:$J$8276,4,FALSE) -> -46 | F55: =VLOOKUP(A55,[2]RAW!$C$2:$J$8276,5,FALSE) -> -16 | G55: =VLOOKUP(A55,[2]RAW!$C$2:$J$8276,6,FALSE) -> 28 | H55: =VLOOKUP(A55,[2]RAW!$C$2:$J$8276,7,FALSE) -> 16 | I55: =VLOOKUP(A55,[2]RAW!$C$2:$J$8276,8,FALSE) -> 5 | J55: =VLOOKUP(A55,[3]RAW!$C$17:$BK$8270,60,FALSE) -> -25.77111111 | K55: =VLOOKUP(A55,[3]RAW!$C$17:$BK$8270,61,FALSE) -> 28.26805556 | L55: x | M55: x | N55: x | O55: x | P55: x | Q55: x | R55: x | S55: x | AE55: x | AI55: x | AK55: Aucklandpark
A56: MIDDELBURG | B56: =VLOOKUP(A56,'[1]RSG Sites'!$A$2:$F$133,6,FALSE) -> Gold | C56: =VLOOKUP(A56,[2]RAW!$C$2:$O$8276,13,FALSE) -> MP | D56: =VLOOKUP(A56,[2]RAW!$C$2:$J$8276,3,FALSE) -> -25 | E56: =VLOOKUP(A56,[2]RAW!$C$2:$J$8276,4,FALSE) -> -49 | F56: =VLOOKUP(A56,[2]RAW!$C$2:$J$8276,5,FALSE) -> -4 | G56: =VLOOKUP(A56,[2]RAW!$C$2:$J$8276,6,FALSE) -> 29 | H56: =VLOOKUP(A56,[2]RAW!$C$2:$J$8276,7,FALSE) -> 23 | I56: =VLOOKUP(A56,[2]RAW!$C$2:$J$8276,8,FALSE) -> 24 | J56: =VLOOKUP(A56,[3]RAW!$C$17:$BK$8270,60,FALSE) -> -25.81777778 | K56: =VLOOKUP(A56,[3]RAW!$C$17:$BK$8270,61,FALSE) -> 29.39 | L56: x | M56: x | N56: x | O56: x | P56: x | Q56: x | R56: x | S56: x | W56: x | X56: x | Y56: x | AA56: x | AB56: x | AG56: x | AI56: x | AK56: Hatfield
A57: MMABATHO | B57: =VLOOKUP(A57,'[1]RSG Sites'!$A$2:$F$133,6,FALSE) ->  | C57: =VLOOKUP(A57,[2]RAW!$C$2:$O$8276,13,FALSE) -> NW | D57: =VLOOKUP(A57,[2]RAW!$C$2:$J$8276,3,FALSE) -> -25 | E57: =VLOOKUP(A57,[2]RAW!$C$2:$J$8276,4,FALSE) -> -50 | F57: =VLOOKUP(A57,[2]RAW!$C$2:$J$8276,5,FALSE) -> -22 | G57: =VLOOKUP(A57,[2]RAW!$C$2:$J$8276,6,FALSE) -> 25 | H57: =VLOOKUP(A57,[2]RAW!$C$2:$J$8276,7,FALSE) -> 36 | I57: =VLOOKUP(A57,[2]RAW!$C$2:$J$8276,8,FALSE) -> 46 | J57: =VLOOKUP(A57,[3]RAW!$C$17:$BK$8270,60,FALSE) -> -25.83944444 | K57: =VLOOKUP(A57,[3]RAW!$C$17:$BK$8270,61,FALSE) -> 25.61277778 | T57: x | U57: x | AE57: x | AI57: x | AK57: Mahikeng
A58: MONDEOR | B58: =VLOOKUP(A58,'[1]RSG Sites'!$A$2:$F$133,6,FALSE) ->  | C58: =VLOOKUP(A58,[2]RAW!$C$2:$O$8276,13,FALSE) -> GP | D58: =VLOOKUP(A58,[2]RAW!$C$2:$J$8276,3,FALSE) -> -26 | E58: =VLOOKUP(A58,[2]RAW!$C$2:$J$8276,4,FALSE) -> -16 | F58: =VLOOKUP(A58,[2]RAW!$C$2:$J$8276,5,FALSE) -> -54 | G58: =VLOOKUP(A58,[2]RAW!$C$2:$J$8276,6,FALSE) -> 27 | H58: =VLOOKUP(A58,[2]RAW!$C$2:$J$8276,7,FALSE) -> 59 | I58: =VLOOKUP(A58,[2]RAW!$C$2:$J$8276,8,FALSE) -> 37 | J58: =VLOOKUP(A58,[3]RAW!$C$17:$BK$8270,60,FALSE) -> -26.28166667 | K58: =VLOOKUP(A58,[3]RAW!$C$17:$BK$8270,61,FALSE) -> 27.99361111 | M58: x | N58: x | O58: x | Q58: x | R58: x | AI58: x | AK58: Aucklandpark
A59: MOTSWEDI | B59: =VLOOKUP(A59,'[1]RSG Sites'!$A$2:$F$133,6,FALSE) ->  | C59: =VLOOKUP(A59,[2]RAW!$C$2:$O$8276,13,FALSE) -> NW | D59: =VLOOKUP(A59,[2]RAW!$C$2:$J$8276,3,FALSE) -> -25 | E59: =VLOOKUP(A59,[2]RAW!$C$2:$J$8276,4,FALSE) -> -16 | F59: =VLOOKUP(A59,[2]RAW!$C$2:$J$8276,5,FALSE) -> -55 | G59: =VLOOKUP(A59,[2]RAW!$C$2:$J$8276,6,FALSE) -> 25 | H59: =VLOOKUP(A59,[2]RAW!$C$2:$J$8276,7,FALSE) -> 52 | I59: =VLOOKUP(A59,[2]RAW!$C$2:$J$8276,8,FALSE) -> 18 | J59: =VLOOKUP(A59,[3]RAW!$C$17:$BK$8270,60,FALSE) -> -25.28194444 | K59: =VLOOKUP(A59,[3]RAW!$C$17:$BK$8270,61,FALSE) -> 25.87166667 | M59: x | N59: x | Q59: x | AE59: x | AI59: x | AK59: Mahikeng
A60: MOUNT AYLIFF | B60: =VLOOKUP(A60,'[1]RSG Sites'!$A$2:$F$133,6,FALSE) -> Silver | C60: =VLOOKUP(A60,[2]RAW!$C$2:$O$8276,13,FALSE) -> EC | D60: =VLOOKUP(A60,[2]RAW!$C$2:$J$8276,3,FALSE) -> -30 | E60: =VLOOKUP(A60,[2]RAW!$C$2:$J$8276,4,FALSE) -> -50 | F60: =VLOOKUP(A60,[2]RAW!$C$2:$J$8276,5,FALSE) -> -11 | G60: =VLOOKUP(A60,[2]RAW!$C$2:$J$8276,6,FALSE) -> 29 | H60: =VLOOKUP(A60,[2]RAW!$C$2:$J$8276,7,FALSE) -> 23 | I60: =VLOOKUP(A60,[2]RAW!$C$2:$J$8276,8,FALSE) -> 41 | J60: =VLOOKUP(A60,[3]RAW!$C$17:$BK$8270,60,FALSE) -> -30.83638889 | K60: =VLOOKUP(A60,[3]RAW!$C$17:$BK$8270,61,FALSE) -> 29.39472222 | L60: x | M60: x | N60: x | O60: x | P60: x | Q60: x | R60: x | S60: x | T60: x | W60: x | AJ60: x | AK60: Mthatha
A61: MULBARTON | B61: =VLOOKUP(A61,'[1]RSG Sites'!$A$2:$F$133,6,FALSE) ->  | C61: =VLOOKUP(A61,[2]RAW!$C$2:$O$8276,13,FALSE) -> GP | D61: =VLOOKUP(A61,[2]RAW!$C$2:$J$8276,3,FALSE) -> -26 | E61: =VLOOKUP(A61,[2]RAW!$C$2:$J$8276,4,FALSE) -> -17 | F61: =VLOOKUP(A61,[2]RAW!$C$2:$J$8276,5,FALSE) -> -38 | G61: =VLOOKUP(A61,[2]RAW!$C$2:$J$8276,6,FALSE) -> 28 | H61: =VLOOKUP(A61,[2]RAW!$C$2:$J$8276,7,FALSE) -> 3 | I61: =VLOOKUP(A61,[2]RAW!$C$2:$J$8276,8,FALSE) -> 56 | J61: =VLOOKUP(A61,[3]RAW!$C$17:$BK$8270,60,FALSE) -> -26.29388889 | K61: =VLOOKUP(A61,[3]RAW!$C$17:$BK$8270,61,FALSE) -> 28.06555556 | M61: x | N61: x | O61: x | Q61: x | R61: x | AI61: x | AK61: Aucklandpark
A62: NELSPRUIT | B62: =VLOOKUP(A62,'[1]RSG Sites'!$A$2:$F$133,6,FALSE) -> Gold | C62: =VLOOKUP(A62,[2]RAW!$C$2:$O$8276,13,FALSE) -> MP | D62: =VLOOKUP(A62,[2]RAW!$C$2:$J$8276,3,FALSE) -> -25 | E62: =VLOOKUP(A62,[2]RAW!$C$2:$J$8276,4,FALSE) -> -30 | F62: =VLOOKUP(A62,[2]RAW!$C$2:$J$8276,5,FALSE) -> -57 | G62: =VLOOKUP(A62,[2]RAW!$C$2:$J$8276,6,FALSE) -> 30 | H62: =VLOOKUP(A62,[2]RAW!$C$2:$J$8276,7,FALSE) -> 46 | I62: =VLOOKUP(A62,[2]RAW!$C$2:$J$8276,8,FALSE) -> 33 | J62: =VLOOKUP(A62,[3]RAW!$C$17:$BK$8270,60,FALSE) -> -25.51583333 | K62: =VLOOKUP(A62,[3]RAW!$C$17:$BK$8270,61,FALSE) -> 30.77583333 | L62: x | M62: x | N62: x | O62: x | P62: x | Q62: x | R62: x | S62: x | X62: x | Y62: x | AB62: x | AF62: x | AI62: x | AK62: Nelspruit
A63: OUDTSHOORN | B63: =VLOOKUP(A63,'[1]RSG Sites'!$A$2:$F$133,6,FALSE) -> Gold | C63: =VLOOKUP(A63,[2]RAW!$C$2:$O$8276,13,FALSE) -> WC | D63: =VLOOKUP(A63,[2]RAW!$C$2:$J$8276,3,FALSE) -> -33 | E63: =VLOOKUP(A63,[2]RAW!$C$2:$J$8276,4,FALSE) -> -34 | F63: =VLOOKUP(A63,[2]RAW!$C$2:$J$8276,5,FALSE) -> -49 | G63: =VLOOKUP(A63,[2]RAW!$C$2:$J$8276,6,FALSE) -> 22 | H63: =VLOOKUP(A63,[2]RAW!$C$2:$J$8276,7,FALSE) -> 13 | I63: =VLOOKUP(A63,[2]RAW!$C$2:$J$8276,8,FALSE) -> 35 | J63: =VLOOKUP(A63,[3]RAW!$C$17:$BK$8270,60,FALSE) -> -33.67138889 | K63: =VLOOKUP(A63,[3]RAW!$C$17:$BK$8270,61,FALSE) -> 22.26694444 | L63: x | M63: x | N63: x | O63: x | P63: x | Q63: x | R63: x | S63: x | T63: x | Y63: x | AI63: x | AK63: George
A64: OVERPORT | B64: =VLOOKUP(A64,'[1]RSG Sites'!$A$2:$F$133,6,FALSE) ->  | C64: =VLOOKUP(A64,[2]RAW!$C$2:$O$8276,13,FALSE) -> KN | D64: =VLOOKUP(A64,[2]RAW!$C$2:$J$8276,3,FALSE) -> -29 | E64: =VLOOKUP(A64,[2]RAW!$C$2:$J$8276,4,FALSE) -> -50 | F64: =VLOOKUP(A64,[2]RAW!$C$2:$J$8276,5,FALSE) -> -12 | G64: =VLOOKUP(A64,[2]RAW!$C$2:$J$8276,6,FALSE) -> 30 | H64: =VLOOKUP(A64,[2]RAW!$C$2:$J$8276,7,FALSE) -> 59 | I64: =VLOOKUP(A64,[2]RAW!$C$2:$J$8276,8,FALSE) -> 44 | J64: =VLOOKUP(A64,[3]RAW!$C$17:$BK$8270,60,FALSE) -> -29.83666667 | K64: =VLOOKUP(A64,[3]RAW!$C$17:$BK$8270,61,FALSE) -> 30.99555556 | M64: x | N64: x | O64: x | Q64: x | R64: x | AI64: x | AK64: Durban
A65: PAARL | B65: =VLOOKUP(A65,'[1]RSG Sites'!$A$2:$F$133,6,FALSE) -> Silver | C65: =VLOOKUP(A65,[2]RAW!$C$2:$O$8276,13,FALSE) -> WC | D65: =VLOOKUP(A65,[2]RAW!$C$2:$J$8276,3,FALSE) -> -33 | E65: =VLOOKUP(A65,[2]RAW!$C$2:$J$8276,4,FALSE) -> -42 | F65: =VLOOKUP(A65,[2]RAW!$C$2:$J$8276,5,FALSE) -> -51 | G65: =VLOOKUP(A65,[2]RAW!$C$2:$J$8276,6,FALSE) -> 18 | H65: =VLOOKUP(A65,[2]RAW!$C$2:$J$8276,7,FALSE) -> 56 | I65: =VLOOKUP(A65,[2]RAW!$C$2:$J$8276,8,FALSE) -> 23 | J65: =VLOOKUP(A65,[3]RAW!$C$17:$BK$8270,60,FALSE) -> -33.71416667 | K65: =VLOOKUP(A65,[3]RAW!$C$17:$BK$8270,61,FALSE) -> 18.93972222 | L65: x | M65: x | N65: x | O65: x | P65: x | Q65: x | R65: x | S65: x | T65: x | Y65: x | Z65: x | AI65: x | AK65: Seapoint
A66: PANKOP | B66: =VLOOKUP(A66,'[1]RSG Sites'!$A$2:$F$133,6,FALSE) ->  | C66: =VLOOKUP(A66,[2]RAW!$C$2:$O$8276,13,FALSE) -> MP | D66: =VLOOKUP(A66,[2]RAW!$C$2:$J$8276,3,FALSE) -> -25 | E66: =VLOOKUP(A66,[2]RAW!$C$2:$J$8276,4,FALSE) -> -9 | F66: =VLOOKUP(A66,[2]RAW!$C$2:$J$8276,5,FALSE) -> -44 | G66: =VLOOKUP(A66,[2]RAW!$C$2:$J$8276,6,FALSE) -> 28 | H66: =VLOOKUP(A66,[2]RAW!$C$2:$J$8276,7,FALSE) -> 24 | I66: =VLOOKUP(A66,[2]RAW!$C$2:$J$8276,8,FALSE) -> 16 | J66: =VLOOKUP(A66,[3]RAW!$C$17:$BK$8270,60,FALSE) -> -25.16222222 | K66: =VLOOKUP(A66,[3]RAW!$C$17:$BK$8270,61,FALSE) -> 28.40444444 | AE66: x | AI66: x | AK66: Hatfield
A67: PARSONS HILL | B67: =VLOOKUP(A67,'[1]RSG Sites'!$A$2:$F$133,6,FALSE) -> Bronze | C67: =VLOOKUP(A67,[2]RAW!$C$2:$O$8276,13,FALSE) -> EC | D67: =VLOOKUP(A67,[2]RAW!$C$2:$J$8276,3,FALSE) -> -33 | E67: =VLOOKUP(A67,[2]RAW!$C$2:$J$8276,4,FALSE) -> -57 | F67: =VLOOKUP(A67,[2]RAW!$C$2:$J$8276,5,FALSE) -> -11 | G67: =VLOOKUP(A67,[2]RAW!$C$2:$J$8276,6,FALSE) -> 25 | H67: =VLOOKUP(A67,[2]RAW!$C$2:$J$8276,7,FALSE) -> 35 | I67: =VLOOKUP(A67,[2]RAW!$C$2:$J$8276,8,FALSE) -> 19 | J67: =VLOOKUP(A67,[3]RAW!$C$17:$BK$8270,60,FALSE) -> -33.95305556 | K67: =VLOOKUP(A67,[3]RAW!$C$17:$BK$8270,61,FALSE) -> 25.58861111 | L67: x | P67: x | S67: x | T67: x | X67: x | AI67: x | AK67: Port Elizabeth
A68: PATENSIE | B68: =VLOOKUP(A68,'[1]RSG Sites'!$A$2:$F$133,6,FALSE) -> Bronze | C68: =VLOOKUP(A68,[2]RAW!$C$2:$O$8276,13,FALSE) -> EC | D68: =VLOOKUP(A68,[2]RAW!$C$2:$J$8276,3,FALSE) -> -33 | E68: =VLOOKUP(A68,[2]RAW!$C$2:$J$8276,4,FALSE) -> -45 | F68: =VLOOKUP(A68,[2]RAW!$C$2:$J$8276,5,FALSE) -> -39 | G68: =VLOOKUP(A68,[2]RAW!$C$2:$J$8276,6,FALSE) -> 24 | H68: =VLOOKUP(A68,[2]RAW!$C$2:$J$8276,7,FALSE) -> 49 | I68: =VLOOKUP(A68,[2]RAW!$C$2:$J$8276,8,FALSE) -> 37 | J68: =VLOOKUP(A68,[3]RAW!$C$17:$BK$8270,60,FALSE) -> -33.75972222 | K68: =VLOOKUP(A68,[3]RAW!$C$17:$BK$8270,61,FALSE) -> 24.82833333 | L68: x | M68: x | N68: x | O68: x | Q68: x | S68: x | T68: x | AI68: x | AK68: Port Elizabeth
A69: PAUL SAUER DAM | B69: =VLOOKUP(A69,'[1]RSG Sites'!$A$2:$F$133,6,FALSE) -> Bronze | C69: =VLOOKUP(A69,[2]RAW!$C$2:$O$8276,13,FALSE) -> EC | D69: =VLOOKUP(A69,[2]RAW!$C$2:$J$8276,3,FALSE) -> -33 | E69: =VLOOKUP(A69,[2]RAW!$C$2:$J$8276,4,FALSE) -> -45 | F69: =VLOOKUP(A69,[2]RAW!$C$2:$J$8276,5,FALSE) -> -13 | G69: =VLOOKUP(A69,[2]RAW!$C$2:$J$8276,6,FALSE) -> 24 | H69: =VLOOKUP(A69,[2]RAW!$C$2:$J$8276,7,FALSE) -> 33 | I69: =VLOOKUP(A69,[2]RAW!$C$2:$J$8276,8,FALSE) -> 43 | J69: =VLOOKUP(A69,[3]RAW!$C$17:$BK$8270,60,FALSE) -> -33.75361111 | K69: =VLOOKUP(A69,[3]RAW!$C$17:$BK$8270,61,FALSE) -> 24.56194444 | L69: x | M69: x | N69: x | O69: x | Q69: x | S69: x | T69: x | AI69: x | AK69: Port Elizabeth
A70: PIET PLESSIS | B70: =VLOOKUP(A70,'[1]RSG Sites'!$A$2:$F$133,6,FALSE) -> Silver | C70: =VLOOKUP(A70,[2]RAW!$C$2:$O$8276,13,FALSE) -> NW | D70: =VLOOKUP(A70,[2]RAW!$C$2:$J$8276,3,FALSE) -> -26 | E70: =VLOOKUP(A70,[2]RAW!$C$2:$J$8276,4,FALSE) -> -14 | F70: =VLOOKUP(A70,[2]RAW!$C$2:$J$8276,5,FALSE) -> -56 | G70: =VLOOKUP(A70,[2]RAW!$C$2:$J$8276,6,FALSE) -> 24 | H70: =VLOOKUP(A70,[2]RAW!$C$2:$J$8276,7,FALSE) -> 49 | I70: =VLOOKUP(A70,[2]RAW!$C$2:$J$8276,8,FALSE) -> 55 | J70: =VLOOKUP(A70,[3]RAW!$C$17:$BK$8270,60,FALSE) -> -26.24888889 | K70: =VLOOKUP(A70,[3]RAW!$C$17:$BK$8270,61,FALSE) -> 24.83194444 | L70: x | M70: x | N70: x | Q70: x | R70: x | S70: x | AE70: x | AI70: x | AK70: Mahikeng
A71: PIETERMARITZBURG | B71: =VLOOKUP(A71,'[1]RSG Sites'!$A$2:$F$133,6,FALSE) -> Silver | C71: =VLOOKUP(A71,[2]RAW!$C$2:$O$8276,13,FALSE) -> KN | D71: =VLOOKUP(A71,[2]RAW!$C$2:$J$8276,3,FALSE) -> -29 | E71: =VLOOKUP(A71,[2]RAW!$C$2:$J$8276,4,FALSE) -> -34 | F71: =VLOOKUP(A71,[2]RAW!$C$2:$J$8276,5,FALSE) -> 0 | G71: =VLOOKUP(A71,[2]RAW!$C$2:$J$8276,6,FALSE) -> 30 | H71: =VLOOKUP(A71,[2]RAW!$C$2:$J$8276,7,FALSE) -> 19 | I71: =VLOOKUP(A71,[2]RAW!$C$2:$J$8276,8,FALSE) -> 0 | J71: =VLOOKUP(A71,[3]RAW!$C$17:$BK$8270,60,FALSE) -> -29.57972222 | K71: =VLOOKUP(A71,[3]RAW!$C$17:$BK$8270,61,FALSE) -> 30.33027778 | L71: x | M71: x | N71: x | O71: x | P71: x | Q71: x | R71: x | S71: x | W71: x | Y71: x | AC71: x | AI71: x | AK71: Durban
A72: PLETTENBERG BAY | B72: =VLOOKUP(A72,'[1]RSG Sites'!$A$2:$F$133,6,FALSE) -> Silver | C72: =VLOOKUP(A72,[2]RAW!$C$2:$O$8276,13,FALSE) -> WC | D72: =VLOOKUP(A72,[2]RAW!$C$2:$J$8276,3,FALSE) -> -34 | E72: =VLOOKUP(A72,[2]RAW!$C$2:$J$8276,4,FALSE) -> -3 | F72: =VLOOKUP(A72,[2]RAW!$C$2:$J$8276,5,FALSE) -> -34 | G72: =VLOOKUP(A72,[2]RAW!$C$2:$J$8276,6,FALSE) -> 23 | H72: =VLOOKUP(A72,[2]RAW!$C$2:$J$8276,7,FALSE) -> 22 | I72: =VLOOKUP(A72,[2]RAW!$C$2:$J$8276,8,FALSE) -> 25 | J72: =VLOOKUP(A72,[3]RAW!$C$17:$BK$8270,60,FALSE) -> -34.05944444 | K72: =VLOOKUP(A72,[3]RAW!$C$17:$BK$8270,61,FALSE) -> 23.37361111 | L72: x | M72: x | N72: x | O72: x | Q72: x | R72: x | S72: x | T72: x | Z72: x | AI72: x | AK72: George
A73: PORT ELIZABETH | B73: =VLOOKUP(A73,'[1]RSG Sites'!$A$2:$F$133,6,FALSE) -> Gold | C73: =VLOOKUP(A73,[2]RAW!$C$2:$O$8276,13,FALSE) -> EC | D73: =VLOOKUP(A73,[2]RAW!$C$2:$J$8276,3,FALSE) -> -33 | E73: =VLOOKUP(A73,[2]RAW!$C$2:$J$8276,4,FALSE) -> -56 | F73: =VLOOKUP(A73,[2]RAW!$C$2:$J$8276,5,FALSE) -> -10 | G73: =VLOOKUP(A73,[2]RAW!$C$2:$J$8276,6,FALSE) -> 25 | H73: =VLOOKUP(A73,[2]RAW!$C$2:$J$8276,7,FALSE) -> 26 | I73: =VLOOKUP(A73,[2]RAW!$C$2:$J$8276,8,FALSE) -> 27 | J73: =VLOOKUP(A73,[3]RAW!$C$17:$BK$8270,60,FALSE) -> -33.93611111 | K73: =VLOOKUP(A73,[3]RAW!$C$17:$BK$8270,61,FALSE) -> 25.44083333 | L73: x | M73: x | N73: x | O73: x | P73: x | Q73: x | R73: x | S73: x | T73: x | X73: x | Y73: x | AC73: x | AI73: x | AK73: Port Elizabeth
A74: PORT ELIZABETH CITY | B74: =VLOOKUP(A74,'[1]RSG Sites'!$A$2:$F$133,6,FALSE) ->  | C74: =VLOOKUP(A74,[2]RAW!$C$2:$O$8276,13,FALSE) -> EC | D74: =VLOOKUP(A74,[2]RAW!$C$2:$J$8276,3,FALSE) -> -33 | E74: =VLOOKUP(A74,[2]RAW!$C$2:$J$8276,4,FALSE) -> -55 | F74: =VLOOKUP(A74,[2]RAW!$C$2:$J$8276,5,FALSE) -> -28 | G74: =VLOOKUP(A74,[2]RAW!$C$2:$J$8276,6,FALSE) -> 25 | H74: =VLOOKUP(A74,[2]RAW!$C$2:$J$8276,7,FALSE) -> 35 | I74: =VLOOKUP(A74,[2]RAW!$C$2:$J$8276,8,FALSE) -> 29 | J74: =VLOOKUP(A74,[3]RAW!$C$17:$BK$8270,60,FALSE) -> -33.92444444 | K74: =VLOOKUP(A74,[3]RAW!$C$17:$BK$8270,61,FALSE) -> 25.59138889 | M74: x | N74: x | O74: x | Q74: x | R74: x | AI74: x | AK74: Port Elizabeth
A75: PORT ST JOHNS | B75: =VLOOKUP(A75,'[1]RSG Sites'!$A$2:$F$133,6,FALSE) -> Silver | C75: =VLOOKUP(A75,[2]RAW!$C$2:$O$8276,13,FALSE) -> EC | D75: =VLOOKUP(A75,[2]RAW!$C$2:$J$8276,3,FALSE) -> -31 | E75: =VLOOKUP(A75,[2]RAW!$C$2:$J$8276,4,FALSE) -> -36 | F75: =VLOOKUP(A75,[2]RAW!$C$2:$J$8276,5,FALSE) -> -39 | G75: =VLOOKUP(A75,[2]RAW!$C$2:$J$8276,6,FALSE) -> 29 | H75: =VLOOKUP(A75,[2]RAW!$C$2:$J$8276,7,FALSE) -> 31 | I75: =VLOOKUP(A75,[2]RAW!$C$2:$J$8276,8,FALSE) -> 39 | J75: =VLOOKUP(A75,[3]RAW!$C$17:$BK$8270,60,FALSE) -> -31.61083333 | K75: =VLOOKUP(A75,[3]RAW!$C$17:$BK$8270,61,FALSE) -> 29.5275 | L75: x | M75: x | N75: x | O75: x | P75: x | Q75: x | R75: x | S75: x | T75: x | AJ75: x | AK75: Mthatha
A76: POTGIETERSRUS | B76: =VLOOKUP(A76,'[1]RSG Sites'!$A$2:$F$133,6,FALSE) -> Platinum | C76: =VLOOKUP(A76,[2]RAW!$C$2:$O$8276,13,FALSE) -> LP | D76: =VLOOKUP(A76,[2]RAW!$C$2:$J$8276,3,FALSE) -> -24 | E76: =VLOOKUP(A76,[2]RAW!$C$2:$J$8276,4,FALSE) -> -9 | F76: =VLOOKUP(A76,[2]RAW!$C$2:$J$8276,5,FALSE) -> -24 | G76: =VLOOKUP(A76,[2]RAW!$C$2:$J$8276,6,FALSE) -> 29 | H76: =VLOOKUP(A76,[2]RAW!$C$2:$J$8276,7,FALSE) -> 14 | I76: =VLOOKUP(A76,[2]RAW!$C$2:$J$8276,8,FALSE) -> 10 | J76: =VLOOKUP(A76,[3]RAW!$C$17:$BK$8270,60,FALSE) -> -24.15666667 | K76: =VLOOKUP(A76,[3]RAW!$C$17:$BK$8270,61,FALSE) -> 29.23611111 | L76: x | M76: x | N76: x | O76: x | P76: x | Q76: x | R76: x | X76: x | Y76: x | AA76: x | AD76: x | AF76: x | AG76: x | AI76: x | AK76: Polokwane
A77: PRETORIA | B77: =VLOOKUP(A77,'[1]RSG Sites'!$A$2:$F$133,6,FALSE) -> Platinum | C77: =VLOOKUP(A77,[2]RAW!$C$2:$O$8276,13,FALSE) -> GP | D77: =VLOOKUP(A77,[2]RAW!$C$2:$J$8276,3,FALSE) -> -25 | E77: =VLOOKUP(A77,[2]RAW!$C$2:$J$8276,4,FALSE) -> -41 | F77: =VLOOKUP(A77,[2]RAW!$C$2:$J$8276,5,FALSE) -> -21 | G77: =VLOOKUP(A77,[2]RAW!$C$2:$J$8276,6,FALSE) -> 27 | H77: =VLOOKUP(A77,[2]RAW!$C$2:$J$8276,7,FALSE) -> 59 | I77: =VLOOKUP(A77,[2]RAW!$C$2:$J$8276,8,FALSE) -> 2 | J77: =VLOOKUP(A77,[3]RAW!$C$17:$BK$8270,60,FALSE) -> -25.68916667 | K77: =VLOOKUP(A77,[3]RAW!$C$17:$BK$8270,61,FALSE) -> 27.98388889 | L77: x | M77: x | N77: x | O77: x | P77: x | Q77: x | R77: x | S77: x | W77: x | X77: x | AA77: x | AB77: x | AD77: x | AE77: x | AF77: x | AG77: x | AI77: x | AK77: Aucklandpark
A78: PRETORIA NORTH | B78: =VLOOKUP(A78,'[1]RSG Sites'!$A$2:$F$133,6,FALSE) ->  | C78: =VLOOKUP(A78,[2]RAW!$C$2:$O$8276,13,FALSE) -> GP | D78: =VLOOKUP(A78,[2]RAW!$C$2:$J$8276,3,FALSE) -> -25 | E78: =VLOOKUP(A78,[2]RAW!$C$2:$J$8276,4,FALSE) -> -41 | F78: =VLOOKUP(A78,[2]RAW!$C$2:$J$8276,5,FALSE) -> -29 | G78: =VLOOKUP(A78,[2]RAW!$C$2:$J$8276,6,FALSE) -> 28 | H78: =VLOOKUP(A78,[2]RAW!$C$2:$J$8276,7,FALSE) -> 10 | I78: =VLOOKUP(A78,[2]RAW!$C$2:$J$8276,8,FALSE) -> 2 | J78: =VLOOKUP(A78,[3]RAW!$C$17:$BK$8270,60,FALSE) -> -25.69138889 | K78: =VLOOKUP(A78,[3]RAW!$C$17:$BK$8270,61,FALSE) -> 28.16722222 | M78: x | N78: x | O78: x | Q78: x | R78: x | AI78: x | AK78: Aucklandpark
A79: PUNDA MARIA | B79: =VLOOKUP(A79,'[1]RSG Sites'!$A$2:$F$133,6,FALSE) ->  | C79: =VLOOKUP(A79,[2]RAW!$C$2:$O$8276,13,FALSE) -> LP | D79: =VLOOKUP(A79,[2]RAW!$C$2:$J$8276,3,FALSE) -> -22 | E79: =VLOOKUP(A79,[2]RAW!$C$2:$J$8276,4,FALSE) -> -43 | F79: =VLOOKUP(A79,[2]RAW!$C$2:$J$8276,5,FALSE) -> -28 | G79: =VLOOKUP(A79,[2]RAW!$C$2:$J$8276,6,FALSE) -> 30 | H79: =VLOOKUP(A79,[2]RAW!$C$2:$J$8276,7,FALSE) -> 59 | I79: =VLOOKUP(A79,[2]RAW!$C$2:$J$8276,8,FALSE) -> 19 | J79: =VLOOKUP(A79,[3]RAW!$C$17:$BK$8270,60,FALSE) -> -22.72444444 | K79: =VLOOKUP(A79,[3]RAW!$C$17:$BK$8270,61,FALSE) -> 30.98861111 | AD79: x | AF79: x | AI79: x | AK79: Thohoyandou
A80: RIVERSDALE | B80: =VLOOKUP(A80,'[1]RSG Sites'!$A$2:$F$133,6,FALSE) -> Silver | C80: =VLOOKUP(A80,[2]RAW!$C$2:$O$8276,13,FALSE) -> WC | D80: =VLOOKUP(A80,[2]RAW!$C$2:$J$8276,3,FALSE) -> -34 | E80: =VLOOKUP(A80,[2]RAW!$C$2:$J$8276,4,FALSE) -> -5 | F80: =VLOOKUP(A80,[2]RAW!$C$2:$J$8276,5,FALSE) -> -58 | G80: =VLOOKUP(A80,[2]RAW!$C$2:$J$8276,6,FALSE) -> 21 | H80: =VLOOKUP(A80,[2]RAW!$C$2:$J$8276,7,FALSE) -> 15 | I80: =VLOOKUP(A80,[2]RAW!$C$2:$J$8276,8,FALSE) -> 31 | J80: =VLOOKUP(A80,[3]RAW!$C$17:$BK$8270,60,FALSE) -> -34.01888889 | K80: =VLOOKUP(A80,[3]RAW!$C$17:$BK$8270,61,FALSE) -> 21.1275 | L80: x | M80: x | N80: x | S80: x | Z80: x | AI80: x | AK80: George
A81: RUSTENBURG | B81: =VLOOKUP(A81,'[1]RSG Sites'!$A$2:$F$133,6,FALSE) -> Silver | C81: =VLOOKUP(A81,[2]RAW!$C$2:$O$8276,13,FALSE) -> NW | D81: =VLOOKUP(A81,[2]RAW!$C$2:$J$8276,3,FALSE) -> -25 | E81: =VLOOKUP(A81,[2]RAW!$C$2:$J$8276,4,FALSE) -> -36 | F81: =VLOOKUP(A81,[2]RAW!$C$2:$J$8276,5,FALSE) -> -59 | G81: =VLOOKUP(A81,[2]RAW!$C$2:$J$8276,6,FALSE) -> 27 | H81: =VLOOKUP(A81,[2]RAW!$C$2:$J$8276,7,FALSE) -> 7 | I81: =VLOOKUP(A81,[2]RAW!$C$2:$J$8276,8,FALSE) -> 5 | J81: =VLOOKUP(A81,[3]RAW!$C$17:$BK$8270,60,FALSE) -> -25.61638889 | K81: =VLOOKUP(A81,[3]RAW!$C$17:$BK$8270,61,FALSE) -> 27.11805556 | L81: x | M81: x | N81: x | O81: x | P81: x | Q81: x | R81: x | S81: x | X81: x | AE81: x | AI81: x | AK81: Hatfield
A82: SABIE | B82: =VLOOKUP(A82,'[1]RSG Sites'!$A$2:$F$133,6,FALSE) -> Bronze | C82: =VLOOKUP(A82,[2]RAW!$C$2:$O$8276,13,FALSE) -> MP | D82: =VLOOKUP(A82,[2]RAW!$C$2:$J$8276,3,FALSE) -> -25 | E82: =VLOOKUP(A82,[2]RAW!$C$2:$J$8276,4,FALSE) -> -7 | F82: =VLOOKUP(A82,[2]RAW!$C$2:$J$8276,5,FALSE) -> -46 | G82: =VLOOKUP(A82,[2]RAW!$C$2:$J$8276,6,FALSE) -> 30 | H82: =VLOOKUP(A82,[2]RAW!$C$2:$J$8276,7,FALSE) -> 45 | I82: =VLOOKUP(A82,[2]RAW!$C$2:$J$8276,8,FALSE) -> 35 | J82: =VLOOKUP(A82,[3]RAW!$C$17:$BK$8270,60,FALSE) -> -25.12944444 | K82: =VLOOKUP(A82,[3]RAW!$C$17:$BK$8270,61,FALSE) -> 30.75972222 | L82: x | M82: x | N82: x | R82: x | S82: x | AB82: x | AI82: x | AK82: Nelspruit
A83: SEA POINT | B83: =VLOOKUP(A83,'[1]RSG Sites'!$A$2:$F$133,6,FALSE) -> Bronze | C83: =VLOOKUP(A83,[2]RAW!$C$2:$O$8276,13,FALSE) -> WC | D83: =VLOOKUP(A83,[2]RAW!$C$2:$J$8276,3,FALSE) -> -33 | E83: =VLOOKUP(A83,[2]RAW!$C$2:$J$8276,4,FALSE) -> -54 | F83: =VLOOKUP(A83,[2]RAW!$C$2:$J$8276,5,FALSE) -> -33 | G83: =VLOOKUP(A83,[2]RAW!$C$2:$J$8276,6,FALSE) -> 18 | H83: =VLOOKUP(A83,[2]RAW!$C$2:$J$8276,7,FALSE) -> 23 | I83: =VLOOKUP(A83,[2]RAW!$C$2:$J$8276,8,FALSE) -> 51 | J83: =VLOOKUP(A83,[3]RAW!$C$17:$BK$8270,60,FALSE) -> -33.90916667 | K83: =VLOOKUP(A83,[3]RAW!$C$17:$BK$8270,61,FALSE) -> 18.3975 | L83: x | M83: x | N83: x | O83: x | P83: x | Q83: x | R83: x | S83: x | T83: x | X83: x | Y83: x | Z83: x | AI83: x | AK83: Seapoint
A84: SIBASA | B84: =VLOOKUP(A84,'[1]RSG Sites'!$A$2:$F$133,6,FALSE) ->  | C84: =VLOOKUP(A84,[2]RAW!$C$2:$O$8276,13,FALSE) -> LP | D84: =VLOOKUP(A84,[2]RAW!$C$2:$J$8276,3,FALSE) -> -22 | E84: =VLOOKUP(A84,[2]RAW!$C$2:$J$8276,4,FALSE) -> -56 | F84: =VLOOKUP(A84,[2]RAW!$C$2:$J$8276,5,FALSE) -> -57 | G84: =VLOOKUP(A84,[2]RAW!$C$2:$J$8276,6,FALSE) -> 30 | H84: =VLOOKUP(A84,[2]RAW!$C$2:$J$8276,7,FALSE) -> 26 | I84: =VLOOKUP(A84,[2]RAW!$C$2:$J$8276,8,FALSE) -> 54 | J84: =VLOOKUP(A84,[3]RAW!$C$17:$BK$8270,60,FALSE) -> -22.94916667 | K84: =VLOOKUP(A84,[3]RAW!$C$17:$BK$8270,61,FALSE) -> 30.44833333 | M84: x | N84: x | O84: x | Q84: x | R84: x | AD84: x | AI84: x | AK84: Thohoyandou
A85: SIMONSTOWN | B85: =VLOOKUP(A85,'[1]RSG Sites'!$A$2:$F$133,6,FALSE) -> Silver | C85: =VLOOKUP(A85,[2]RAW!$C$2:$O$8276,13,FALSE) -> WC | D85: =VLOOKUP(A85,[2]RAW!$C$2:$J$8276,3,FALSE) -> -34 | E85: =VLOOKUP(A85,[2]RAW!$C$2:$J$8276,4,FALSE) -> -11 | F85: =VLOOKUP(A85,[2]RAW!$C$2:$J$8276,5,FALSE) -> -55 | G85: =VLOOKUP(A85,[2]RAW!$C$2:$J$8276,6,FALSE) -> 18 | H85: =VLOOKUP(A85,[2]RAW!$C$2:$J$8276,7,FALSE) -> 25 | I85: =VLOOKUP(A85,[2]RAW!$C$2:$J$8276,8,FALSE) -> 36 | J85: =VLOOKUP(A85,[3]RAW!$C$17:$BK$8270,60,FALSE) -> -34.19861111 | K85: =VLOOKUP(A85,[3]RAW!$C$17:$BK$8270,61,FALSE) -> 18.42666667 | L85: x | M85: x | N85: x | O85: x | P85: x | Q85: x | R85: x | S85: x | Y85: x | Z85: x | AI85: x | AK85: Seapoint
A86: SPRINGFONTEIN | B86: =VLOOKUP(A86,'[1]RSG Sites'!$A$2:$F$133,6,FALSE) -> Silver | C86: =VLOOKUP(A86,[2]RAW!$C$2:$O$8276,13,FALSE) -> FS | D86: =VLOOKUP(A86,[2]RAW!$C$2:$J$8276,3,FALSE) -> -30 | E86: =VLOOKUP(A86,[2]RAW!$C$2:$J$8276,4,FALSE) -> -16 | F86: =VLOOKUP(A86,[2]RAW!$C$2:$J$8276,5,FALSE) -> -14 | G86: =VLOOKUP(A86,[2]RAW!$C$2:$J$8276,6,FALSE) -> 25 | H86: =VLOOKUP(A86,[2]RAW!$C$2:$J$8276,7,FALSE) -> 46 | I86: =VLOOKUP(A86,[2]RAW!$C$2:$J$8276,8,FALSE) -> 8 | J86: =VLOOKUP(A86,[3]RAW!$C$17:$BK$8270,60,FALSE) -> -30.27055556 | K86: =VLOOKUP(A86,[3]RAW!$C$17:$BK$8270,61,FALSE) -> 25.76888889 | L86: x | N86: x | P86: x | Q86: x | S86: x | T86: x | U86: x | AI86: x | AK86: Bloemfontein
A87: STELLENBOSCH | B87: =VLOOKUP(A87,'[1]RSG Sites'!$A$2:$F$133,6,FALSE) -> Bronze | C87: =VLOOKUP(A87,[2]RAW!$C$2:$O$8276,13,FALSE) -> WC | D87: =VLOOKUP(A87,[2]RAW!$C$2:$J$8276,3,FALSE) -> -33 | E87: =VLOOKUP(A87,[2]RAW!$C$2:$J$8276,4,FALSE) -> -54 | F87: =VLOOKUP(A87,[2]RAW!$C$2:$J$8276,5,FALSE) -> -59 | G87: =VLOOKUP(A87,[2]RAW!$C$2:$J$8276,6,FALSE) -> 18 | H87: =VLOOKUP(A87,[2]RAW!$C$2:$J$8276,7,FALSE) -> 52 | I87: =VLOOKUP(A87,[2]RAW!$C$2:$J$8276,8,FALSE) -> 10 | J87: =VLOOKUP(A87,[3]RAW!$C$17:$BK$8270,60,FALSE) -> -33.91638889 | K87: =VLOOKUP(A87,[3]RAW!$C$17:$BK$8270,61,FALSE) -> 18.86944444 | L87: x | M87: x | N87: x | O87: x | P87: x | Q87: x | R87: x | S87: x | T87: x | Y87: x | Z87: x | AI87: x | AK87: Seapoint
A88: SUNNYSIDE | B88: =VLOOKUP(A88,'[1]RSG Sites'!$A$2:$F$133,6,FALSE) ->  | C88: =VLOOKUP(A88,[2]RAW!$C$2:$O$8276,13,FALSE) -> GP | D88: =VLOOKUP(A88,[2]RAW!$C$2:$J$8276,3,FALSE) -> -25 | E88: =VLOOKUP(A88,[2]RAW!$C$2:$J$8276,4,FALSE) -> -45 | F88: =VLOOKUP(A88,[2]RAW!$C$2:$J$8276,5,FALSE) -> -58 | G88: =VLOOKUP(A88,[2]RAW!$C$2:$J$8276,6,FALSE) -> 28 | H88: =VLOOKUP(A88,[2]RAW!$C$2:$J$8276,7,FALSE) -> 12 | I88: =VLOOKUP(A88,[2]RAW!$C$2:$J$8276,8,FALSE) -> 21 | J88: =VLOOKUP(A88,[3]RAW!$C$17:$BK$8270,60,FALSE) -> -25.76611111 | K88: =VLOOKUP(A88,[3]RAW!$C$17:$BK$8270,61,FALSE) -> 28.20583333 | M88: x | N88: x | O88: x | Q88: x | R88: x | Y88: x | AC88: x | AI88: x | AK88: Aucklandpark
A89: SUURBERG | B89: =VLOOKUP(A89,'[1]RSG Sites'!$A$2:$F$133,6,FALSE) -> Silver | C89: =VLOOKUP(A89,[2]RAW!$C$2:$O$8276,13,FALSE) -> EC | D89: =VLOOKUP(A89,[2]RAW!$C$2:$J$8276,3,FALSE) -> -33 | E89: =VLOOKUP(A89,[2]RAW!$C$2:$J$8276,4,FALSE) -> -14 | F89: =VLOOKUP(A89,[2]RAW!$C$2:$J$8276,5,FALSE) -> -55 | G89: =VLOOKUP(A89,[2]RAW!$C$2:$J$8276,6,FALSE) -> 25 | H89: =VLOOKUP(A89,[2]RAW!$C$2:$J$8276,7,FALSE) -> 34 | I89: =VLOOKUP(A89,[2]RAW!$C$2:$J$8276,8,FALSE) -> 27 | J89: =VLOOKUP(A89,[3]RAW!$C$17:$BK$8270,60,FALSE) -> -33.24861111 | K89: =VLOOKUP(A89,[3]RAW!$C$17:$BK$8270,61,FALSE) -> 25.57416667 | L89: x | M89: x | N89: x | O89: x | Q89: x | R89: x | S89: x | T89: x | AI89: x | AK89: Port Elizabeth
A90: SWARTRUGGENS | B90: =VLOOKUP(A90,'[1]RSG Sites'!$A$2:$F$133,6,FALSE) ->  | C90: =VLOOKUP(A90,[2]RAW!$C$2:$O$8276,13,FALSE) -> NW | D90: =VLOOKUP(A90,[2]RAW!$C$2:$J$8276,3,FALSE) -> -25 | E90: =VLOOKUP(A90,[2]RAW!$C$2:$J$8276,4,FALSE) -> -40 | F90: =VLOOKUP(A90,[2]RAW!$C$2:$J$8276,5,FALSE) -> -59 | G90: =VLOOKUP(A90,[2]RAW!$C$2:$J$8276,6,FALSE) -> 26 | H90: =VLOOKUP(A90,[2]RAW!$C$2:$J$8276,7,FALSE) -> 48 | I90: =VLOOKUP(A90,[2]RAW!$C$2:$J$8276,8,FALSE) -> 9 | J90: =VLOOKUP(A90,[3]RAW!$C$17:$BK$8270,60,FALSE) -> -25.68305556 | K90: =VLOOKUP(A90,[3]RAW!$C$17:$BK$8270,61,FALSE) -> 26.8025 | N90: x | Q90: x | AI90: x | AK90: Mahikeng
A91: TABLE MOUNTAIN | B91: =VLOOKUP(A91,'[1]RSG Sites'!$A$2:$F$133,6,FALSE) -> Silver | C91: =VLOOKUP(A91,[2]RAW!$C$2:$O$8276,13,FALSE) -> WC | D91: =VLOOKUP(A91,[2]RAW!$C$2:$J$8276,3,FALSE) -> -33 | E91: =VLOOKUP(A91,[2]RAW!$C$2:$J$8276,4,FALSE) -> -57 | F91: =VLOOKUP(A91,[2]RAW!$C$2:$J$8276,5,FALSE) -> -26 | G91: =VLOOKUP(A91,[2]RAW!$C$2:$J$8276,6,FALSE) -> 18 | H91: =VLOOKUP(A91,[2]RAW!$C$2:$J$8276,7,FALSE) -> 24 | I91: =VLOOKUP(A91,[2]RAW!$C$2:$J$8276,8,FALSE) -> 11 | J91: =VLOOKUP(A91,[3]RAW!$C$17:$BK$8270,60,FALSE) -> -33.95722222 | K91: =VLOOKUP(A91,[3]RAW!$C$17:$BK$8270,61,FALSE) -> 18.40305556 | L91: x | M91: x | N91: x | O91: x | P91: x | Q91: x | R91: x | S91: x | T91: x | X91: x | Y91: x | Z91: x | AI91: x | AK91: Seapoint
A92: THABA NCHU | B92: =VLOOKUP(A92,'[1]RSG Sites'!$A$2:$F$133,6,FALSE) ->  | C92: =VLOOKUP(A92,[2]RAW!$C$2:$O$8276,13,FALSE) -> FS | D92: =VLOOKUP(A92,[2]RAW!$C$2:$J$8276,3,FALSE) -> -29 | E92: =VLOOKUP(A92,[2]RAW!$C$2:$J$8276,4,FALSE) -> -15 | F92: =VLOOKUP(A92,[2]RAW!$C$2:$J$8276,5,FALSE) -> -24 | G92: =VLOOKUP(A92,[2]RAW!$C$2:$J$8276,6,FALSE) -> 26 | H92: =VLOOKUP(A92,[2]RAW!$C$2:$J$8276,7,FALSE) -> 45 | I92: =VLOOKUP(A92,[2]RAW!$C$2:$J$8276,8,FALSE) -> 45 | J92: =VLOOKUP(A92,[3]RAW!$C$17:$BK$8270,60,FALSE) -> -29.25666667 | K92: =VLOOKUP(A92,[3]RAW!$C$17:$BK$8270,61,FALSE) -> 26.7625 | U92: x | AE92: x | AI92: x | AK92: Bloemfontein
A93: THE BLUFF | B93: =VLOOKUP(A93,'[1]RSG Sites'!$A$2:$F$133,6,FALSE) -> Silver | C93: =VLOOKUP(A93,[2]RAW!$C$2:$O$8276,13,FALSE) -> KN | D93: =VLOOKUP(A93,[2]RAW!$C$2:$J$8276,3,FALSE) -> -29 | E93: =VLOOKUP(A93,[2]RAW!$C$2:$J$8276,4,FALSE) -> -54 | F93: =VLOOKUP(A93,[2]RAW!$C$2:$J$8276,5,FALSE) -> -42 | G93: =VLOOKUP(A93,[2]RAW!$C$2:$J$8276,6,FALSE) -> 31 | H93: =VLOOKUP(A93,[2]RAW!$C$2:$J$8276,7,FALSE) -> 0 | I93: =VLOOKUP(A93,[2]RAW!$C$2:$J$8276,8,FALSE) -> 44 | J93: =VLOOKUP(A93,[3]RAW!$C$17:$BK$8270,60,FALSE) -> -29.91166667 | K93: =VLOOKUP(A93,[3]RAW!$C$17:$BK$8270,61,FALSE) -> 31.01222222 | L93: x | M93: x | N93: x | O93: x | P93: x | Q93: x | R93: x | S93: x | W93: x | Y93: x | AC93: x | AI93: x | AK93: Durban
A94: THEUNISSEN | B94: =VLOOKUP(A94,'[1]RSG Sites'!$A$2:$F$133,6,FALSE) -> Silver | C94: =VLOOKUP(A94,[2]RAW!$C$2:$O$8276,13,FALSE) -> FS | D94: =VLOOKUP(A94,[2]RAW!$C$2:$J$8276,3,FALSE) -> -28 | E94: =VLOOKUP(A94,[2]RAW!$C$2:$J$8276,4,FALSE) -> -11 | F94: =VLOOKUP(A94,[2]RAW!$C$2:$J$8276,5,FALSE) -> -55 | G94: =VLOOKUP(A94,[2]RAW!$C$2:$J$8276,6,FALSE) -> 26 | H94: =VLOOKUP(A94,[2]RAW!$C$2:$J$8276,7,FALSE) -> 34 | I94: =VLOOKUP(A94,[2]RAW!$C$2:$J$8276,8,FALSE) -> 50 | J94: =VLOOKUP(A94,[3]RAW!$C$17:$BK$8270,60,FALSE) -> -28.19861111 | K94: =VLOOKUP(A94,[3]RAW!$C$17:$BK$8270,61,FALSE) -> 26.58055556 | L94: x | M94: x | N94: x | O94: x | P94: x | Q94: x | R94: x | S94: x | T94: x | U94: x | W94: x | Y94: x | AE94: x | AI94: x | AK94: Bloemfontein
A95: TSHAMAVUDZI | B95: =VLOOKUP(A95,'[1]RSG Sites'!$A$2:$F$133,6,FALSE) ->  | C95: =VLOOKUP(A95,[2]RAW!$C$2:$O$8276,13,FALSE) -> LP | D95: =VLOOKUP(A95,[2]RAW!$C$2:$J$8276,3,FALSE) -> -22 | E95: =VLOOKUP(A95,[2]RAW!$C$2:$J$8276,4,FALSE) -> -39 | F95: =VLOOKUP(A95,[2]RAW!$C$2:$J$8276,5,FALSE) -> -15 | G95: =VLOOKUP(A95,[2]RAW!$C$2:$J$8276,6,FALSE) -> 30 | H95: =VLOOKUP(A95,[2]RAW!$C$2:$J$8276,7,FALSE) -> 31 | I95: =VLOOKUP(A95,[2]RAW!$C$2:$J$8276,8,FALSE) -> 42 | J95: =VLOOKUP(A95,[3]RAW!$C$17:$BK$8270,60,FALSE) -> -22.65416667 | K95: =VLOOKUP(A95,[3]RAW!$C$17:$BK$8270,61,FALSE) -> 30.52833333 | M95: x | N95: x | Q95: x | AD95: x | AG95: x | AI95: x | AK95: Thohoyandou
A96: TYGERBERG | B96: =VLOOKUP(A96,'[1]RSG Sites'!$A$2:$F$133,6,FALSE) -> Gold | C96: =VLOOKUP(A96,[2]RAW!$C$2:$O$8276,13,FALSE) -> WC | D96: =VLOOKUP(A96,[2]RAW!$C$2:$J$8276,3,FALSE) -> -33 | E96: =VLOOKUP(A96,[2]RAW!$C$2:$J$8276,4,FALSE) -> -52 | F96: =VLOOKUP(A96,[2]RAW!$C$2:$J$8276,5,FALSE) -> -31 | G96: =VLOOKUP(A96,[2]RAW!$C$2:$J$8276,6,FALSE) -> 18 | H96: =VLOOKUP(A96,[2]RAW!$C$2:$J$8276,7,FALSE) -> 35 | I96: =VLOOKUP(A96,[2]RAW!$C$2:$J$8276,8,FALSE) -> 44 | J96: =VLOOKUP(A96,[3]RAW!$C$17:$BK$8270,60,FALSE) -> -33.87527778 | K96: =VLOOKUP(A96,[3]RAW!$C$17:$BK$8270,61,FALSE) -> 18.59555556 | L96: x | M96: x | N96: x | O96: x | P96: x | Q96: x | R96: x | S96: x | X96: x | Y96: x | Z96: x | AC96: x | AI96: x | AK96: Seapoint
A97: TZANEEN | B97: =VLOOKUP(A97,'[1]RSG Sites'!$A$2:$F$133,6,FALSE) -> Silver | C97: =VLOOKUP(A97,[2]RAW!$C$2:$O$8276,13,FALSE) -> LP | D97: =VLOOKUP(A97,[2]RAW!$C$2:$J$8276,3,FALSE) -> -23 | E97: =VLOOKUP(A97,[2]RAW!$C$2:$J$8276,4,FALSE) -> -47 | F97: =VLOOKUP(A97,[2]RAW!$C$2:$J$8276,5,FALSE) -> -6 | G97: =VLOOKUP(A97,[2]RAW!$C$2:$J$8276,6,FALSE) -> 30 | H97: =VLOOKUP(A97,[2]RAW!$C$2:$J$8276,7,FALSE) -> 0 | I97: =VLOOKUP(A97,[2]RAW!$C$2:$J$8276,8,FALSE) -> 17 | J97: =VLOOKUP(A97,[3]RAW!$C$17:$BK$8270,60,FALSE) -> -23.785 | K97: =VLOOKUP(A97,[3]RAW!$C$17:$BK$8270,61,FALSE) -> 30.00472222 | L97: x | M97: x | N97: x | O97: x | P97: x | Q97: x | R97: x | S97: x | AD97: x | AF97: x | AG97: x | AI97: x | AK97: Polokwane
A98: UMTATA | B98: =VLOOKUP(A98,'[1]RSG Sites'!$A$2:$F$133,6,FALSE) ->  | C98: =VLOOKUP(A98,[2]RAW!$C$2:$O$8276,13,FALSE) -> EC | D98: =VLOOKUP(A98,[2]RAW!$C$2:$J$8276,3,FALSE) -> -31 | E98: =VLOOKUP(A98,[2]RAW!$C$2:$J$8276,4,FALSE) -> -35 | F98: =VLOOKUP(A98,[2]RAW!$C$2:$J$8276,5,FALSE) -> -48 | G98: =VLOOKUP(A98,[2]RAW!$C$2:$J$8276,6,FALSE) -> 28 | H98: =VLOOKUP(A98,[2]RAW!$C$2:$J$8276,7,FALSE) -> 44 | I98: =VLOOKUP(A98,[2]RAW!$C$2:$J$8276,8,FALSE) -> 36 | J98: =VLOOKUP(A98,[3]RAW!$C$17:$BK$8270,60,FALSE) -> -31.59666667 | K98: =VLOOKUP(A98,[3]RAW!$C$17:$BK$8270,61,FALSE) -> 28.74333333 | L98: x | M98: x | N98: x | O98: x | P98: x | Q98: x | R98: x | S98: x | T98: x | W98: x | AJ98: x | AK98: Mthatha
A99: UNIONDALE | B99: =VLOOKUP(A99,'[1]RSG Sites'!$A$2:$F$133,6,FALSE) -> Bronze | C99: =VLOOKUP(A99,[2]RAW!$C$2:$O$8276,13,FALSE) -> WC | D99: =VLOOKUP(A99,[2]RAW!$C$2:$J$8276,3,FALSE) -> -33 | E99: =VLOOKUP(A99,[2]RAW!$C$2:$J$8276,4,FALSE) -> -43 | F99: =VLOOKUP(A99,[2]RAW!$C$2:$J$8276,5,FALSE) -> -24 | G99: =VLOOKUP(A99,[2]RAW!$C$2:$J$8276,6,FALSE) -> 23 | H99: =VLOOKUP(A99,[2]RAW!$C$2:$J$8276,7,FALSE) -> 3 | I99: =VLOOKUP(A99,[2]RAW!$C$2:$J$8276,8,FALSE) -> 2 | J99: =VLOOKUP(A99,[3]RAW!$C$17:$BK$8270,60,FALSE) -> -33.72333333 | K99: =VLOOKUP(A99,[3]RAW!$C$17:$BK$8270,61,FALSE) -> 23.05055556 | L99: x | N99: x | Q99: x | S99: x | AI99: x | AK99: George
A100: UNIONDALE TOWN | B100: =VLOOKUP(A100,'[1]RSG Sites'!$A$2:$F$133,6,FALSE) ->  | C100: =VLOOKUP(A100,[2]RAW!$C$2:$O$8276,13,FALSE) -> WC | D100: =VLOOKUP(A100,[2]RAW!$C$2:$J$8276,3,FALSE) -> -33 | E100: =VLOOKUP(A100,[2]RAW!$C$2:$J$8276,4,FALSE) -> -38 | F100: =VLOOKUP(A100,[2]RAW!$C$2:$J$8276,5,FALSE) -> -49 | G100: =VLOOKUP(A100,[2]RAW!$C$2:$J$8276,6,FALSE) -> 23 | H100: =VLOOKUP(A100,[2]RAW!$C$2:$J$8276,7,FALSE) -> 7 | I100: =VLOOKUP(A100,[2]RAW!$C$2:$J$8276,8,FALSE) -> 34 | J100: =VLOOKUP(A100,[3]RAW!$C$17:$BK$8270,60,FALSE) -> -33.64694444 | K100: =VLOOKUP(A100,[3]RAW!$C$17:$BK$8270,61,FALSE) -> 23.12611111 | N100: x | Q100: x | AI100: x | AK100: George
A101: VERULAM | B101: =VLOOKUP(A101,'[1]RSG Sites'!$A$2:$F$133,6,FALSE) ->  | C101: =VLOOKUP(A101,[2]RAW!$C$2:$O$8276,13,FALSE) -> KN | D101: =VLOOKUP(A101,[2]RAW!$C$2:$J$8276,3,FALSE) -> -29 | E101: =VLOOKUP(A101,[2]RAW!$C$2:$J$8276,4,FALSE) -> -38 | F101: =VLOOKUP(A101,[2]RAW!$C$2:$J$8276,5,FALSE) -> -25 | G101: =VLOOKUP(A101,[2]RAW!$C$2:$J$8276,6,FALSE) -> 31 | H101: =VLOOKUP(A101,[2]RAW!$C$2:$J$8276,7,FALSE) -> 2 | I101: =VLOOKUP(A101,[2]RAW!$C$2:$J$8276,8,FALSE) -> 19 | J101: =VLOOKUP(A101,[3]RAW!$C$17:$BK$8270,60,FALSE) -> -29.64027778 | K101: =VLOOKUP(A101,[3]RAW!$C$17:$BK$8270,61,FALSE) -> 31.03861111 | M101: x | N101: x | O101: x | Q101: x | R101: x | AI101: x | AK101: Durban
A102: WELGEDACHT | B102: =VLOOKUP(A102,'[1]RSG Sites'!$A$2:$F$133,6,FALSE) ->  | C102: =VLOOKUP(A102,[2]RAW!$C$2:$O$8276,13,FALSE) -> GP | D102: =VLOOKUP(A102,[2]RAW!$C$2:$J$8276,3,FALSE) -> -26 | E102: =VLOOKUP(A102,[2]RAW!$C$2:$J$8276,4,FALSE) -> -11 | F102: =VLOOKUP(A102,[2]RAW!$C$2:$J$8276,5,FALSE) -> -8 | G102: =VLOOKUP(A102,[2]RAW!$C$2:$J$8276,6,FALSE) -> 28 | H102: =VLOOKUP(A102,[2]RAW!$C$2:$J$8276,7,FALSE) -> 31 | I102: =VLOOKUP(A102,[2]RAW!$C$2:$J$8276,8,FALSE) -> 16 | J102: =VLOOKUP(A102,[3]RAW!$C$17:$BK$8270,60,FALSE) -> -26.18555556 | K102: =VLOOKUP(A102,[3]RAW!$C$17:$BK$8270,61,FALSE) -> 28.52111111 | AB102: x | AI102: x | AK102: Aucklandpark
A103: WELVERDIEND | B103: =VLOOKUP(A103,'[1]RSG Sites'!$A$2:$F$133,6,FALSE) -> Silver | C103: =VLOOKUP(A103,[2]RAW!$C$2:$O$8276,13,FALSE) -> GP | D103: =VLOOKUP(A103,[2]RAW!$C$2:$J$8276,3,FALSE) -> -26 | E103: =VLOOKUP(A103,[2]RAW!$C$2:$J$8276,4,FALSE) -> -26 | F103: =VLOOKUP(A103,[2]RAW!$C$2:$J$8276,5,FALSE) -> -48 | G103: =VLOOKUP(A103,[2]RAW!$C$2:$J$8276,6,FALSE) -> 27 | H103: =VLOOKUP(A103,[2]RAW!$C$2:$J$8276,7,FALSE) -> 14 | I103: =VLOOKUP(A103,[2]RAW!$C$2:$J$8276,8,FALSE) -> 53 | J103: =VLOOKUP(A103,[3]RAW!$C$17:$BK$8270,60,FALSE) -> -26.44666667 | K103: =VLOOKUP(A103,[3]RAW!$C$17:$BK$8270,61,FALSE) -> 27.24805556 | L103: x | M103: x | N103: x | O103: x | P103: x | Q103: x | R103: x | S103: x | T103: x | U103: x | W103: x | Y103: x | AE103: x | AI103: x | AK103: Aucklandpark
A104: ZEERUST | B104: =VLOOKUP(A104,'[1]RSG Sites'!$A$2:$F$133,6,FALSE) -> Silver | C104: =VLOOKUP(A104,[2]RAW!$C$2:$O$8276,13,FALSE) -> NW | D104: =VLOOKUP(A104,[2]RAW!$C$2:$J$8276,3,FALSE) -> -25 | E104: =VLOOKUP(A104,[2]RAW!$C$2:$J$8276,4,FALSE) -> -51 | F104: =VLOOKUP(A104,[2]RAW!$C$2:$J$8276,5,FALSE) -> -37 | G104: =VLOOKUP(A104,[2]RAW!$C$2:$J$8276,6,FALSE) -> 26 | H104: =VLOOKUP(A104,[2]RAW!$C$2:$J$8276,7,FALSE) -> 2 | I104: =VLOOKUP(A104,[2]RAW!$C$2:$J$8276,8,FALSE) -> 51 | J104: =VLOOKUP(A104,[3]RAW!$C$17:$BK$8270,60,FALSE) -> -25.86027778 | K104: =VLOOKUP(A104,[3]RAW!$C$17:$BK$8270,61,FALSE) -> 26.0475 | L104: x | M104: x | N104: x | O104: x | P104: x | Q104: x | R104: x | S104: x | AE104: x | AI104: x | AK104: Mahikeng

Sheet Aucklandpark
B1: SLA | C1: Province | D1: LAT_DEG | E1: LAT_MIN | F1: LAT_SEC | G1: LONG_DEG | H1: LONG_MIN | I1: LONG_SEC | J1: DECIMAL LATITUDE | K1: DECIMAL LONGITUDE | L1: RSGR | M1: SBC1 | N1: SBC2 | O1: SBC3 | P1: 2000 | Q1: DTT1 | R1: DTT2 | S1: SAFM | T1: LOBO | U1: SEDI | V1: EKHE | W1: HOZI | X1: METR | Y1: RAD5 | Z1: RGHP | AA1: WEZI | AB1: WALA | AC1: LTUS | AD1: PHAL | AE1: MOTS | AF1: NENE | AG1: BELA | AH1: XKFM | AI1: Regional Site | AJ1: outside sites | AK1: Probe site
A2: BEZ VALLEY | C2: GP | D2: -26 | E2: -11 | F2: -41 | G2: 28 | H2: 5 | I2: 0 | J2: -26.19472222 | K2: 28.08333333 | M2: x | N2: x | O2: x | Q2: x | R2: x | AI2: x | AK2: Aucklandpark
A3: HEIDELBERG | B3: Silver | C3: GP | D3: -26 | E3: -29 | F3: -19 | G3: 28 | H3: 20 | I3: 48 | J3: -26.48861111 | K3: 28.34666667 | L3: x | M3: x | N3: x | O3: x | P3: x | Q3: x | R3: x | S3: x | U3: x | W3: x | AI3: x | AK3: Aucklandpark
A4: HELDERKRUIN | C4: GP | D4: -26 | E4: -6 | F4: -5 | G4: 27 | H4: 51 | I4: 27 | J4: -26.10138889 | K4: 27.8575 | L4: x | M4: x | N4: x | Q4: x | R4: x | Y4: x | AI4: x | AK4: Aucklandpark
A5: JOHANNESBURG | B5: Platinum | C5: GP | D5: -26 | E5: -11 | F5: -31 | G5: 28 | H5: 0 | I5: 26 | J5: -26.19194444 | K5: 28.00722222 | L5: x | M5: x | N5: x | O5: x | P5: x | Q5: x | R5: x | S5: x | T5: x | U5: x | W5: x | X5: x | Y5: x | AA5: x | AC5: x | AD5: x | AE5: x | AF5: x | AG5: x | AI5: x | AK5: Aucklandpark
A6: LINMEYER | C6: GP | D6: -26 | E6: -16 | F6: -8 | G6: 28 | H6: 4 | I6: 16 | J6: -26.26888889 | K6: 28.07111111 | M6: x | N6: x | O6: x | Q6: x | R6: x | AI6: x | AK6: Aucklandpark
A7: MENLO PARK | B7: Silver | C7: GP | D7: -25 | E7: -46 | F7: -16 | G7: 28 | H7: 16 | I7: 5 | J7: -25.77111111 | K7: 28.26805556 | L7: x | M7: x | N7: x | O7: x | P7: x | Q7: x | R7: x | S7: x | AE7: x | AI7: x | AK7: Aucklandpark
A8: MONDEOR | C8: GP | D8: -26 | E8: -16 | F8: -54 | G8: 27 | H8: 59 | I8: 37 | J8: -26.28166667 | K8: 27.99361111 | M8: x | N8: x | O8: x | Q8: x | R8: x | AI8: x | AK8: Aucklandpark
A9: MULBARTON | C9: GP | D9: -26 | E9: -17 | F9: -38 | G9: 28 | H9: 3 | I9: 56 | J9: -26.29388889 | K9: 28.06555556 | M9: x | N9: x | O9: x | Q9: x | R9: x | AI9: x | AK9: Aucklandpark
A10: PRETORIA | B10: Platinum | C10: GP | D10: -25 | E10: -41 | F10: -21 | G10: 27 | H10: 59 | I10: 2 | J10: -25.68916667 | K10: 27.98388889 | L10: x | M10: x | N10: x | O10: x | P10: x | Q10: x | R10: x | S10: x | W10: x | X10: x | AA10: x | AB10: x | AD10: x | AE10: x | AF10: x | AG10: x | AI10: x | AK10: Aucklandpark
A11: PRETORIA NORTH | C11: GP | D11: -25 | E11: -41 | F11: -29 | G11: 28 | H11: 10 | I11: 2 | J11: -25.69138889 | K11: 28.16722222 | M11: x | N11: x | O11: x | Q11: x | R11: x | AI11: x | AK11: Aucklandpark
A12: SUNNYSIDE | C12: GP | D12: -25 | E12: -45 | F12: -58 | G12: 28 | H12: 12 | I12: 21 | J12: -25.76611111 | K12: 28.20583333 | M12: x | N12: x | O12: x | Q12: x | R12: x | Y12: x | AC12: x | AI12: x | AK12: Aucklandpark
A13: WELGEDACHT | C13: GP | D13: -26 | E13: -11 | F13: -8 | G13: 28 | H13: 31 | I13: 16 | J13: -26.18555556 | K13: 28.52111111 | AB13: x | AI13: x | AK13: Aucklandpark
A14: WELVERDIEND | B14: Silver | C14: GP | D14: -26 | E14: -26 | F14: -48 | G14: 27 | H14: 14 | I14: 53 | J14: -26.44666667 | K14: 27.24805556 | L14: x | M14: x | N14: x | O14: x | P14: x | Q14: x | R14: x | S14: x | T14: x | U14: x | W14: x | Y14: x | AE14: x | AI14: x | AK14: Aucklandpark

Sheet EastLondon
B1: SLA | C1: Province | D1: LAT_DEG | E1: LAT_MIN | F1: LAT_SEC | G1: LONG_DEG | H1: LONG_MIN | I1: LONG_SEC | J1: DECIMAL LATITUDE | K1: DECIMAL LONGITUDE | L1: RSGR | M1: SBC1 | N1: SBC2 | O1: SBC3 | P1: 2000 | Q1: DTT1 | R1: DTT2 | S1: SAFM | T1: LOBO | U1: SEDI | V1: EKHE | W1: HOZI | X1: METR | Y1: RAD5 | Z1: RGHP | AA1: WEZI | AB1: WALA | AC1: LTUS | AD1: PHAL | AE1: MOTS | AF1: NENE | AG1: BELA | AH1: XKFM | AI1: Regional Site | AJ1: outside sites | AK1: Probe site
A2: BUTTERWORTH | B2: Silver | C2: EC | D2: -32 | E2: -16 | F2: -35 | G2: 28 | H2: 12 | I2: 24 | J2: -32.27638889 | K2: 28.20666667 | L2: x | M2: x | N2: x | O2: x | P2: x | Q2: x | R2: x | S2: x | T2: x | AI2: x | AK2: EastLondon
A3: EAST LONDON | B3: Silver | C3: EC | D3: -32 | E3: -56 | F3: -20 | G3: 27 | H3: 48 | I3: 56 | J3: -32.93888889 | K3: 27.81555556 | L3: x | M3: x | N3: x | O3: x | P3: x | Q3: x | R3: x | S3: x | T3: x | W3: x | X3: x | Y3: x | AI3: x | AK3: EastLondon
A4: KING WILLIAMS TOWN | B4: Silver | C4: EC | D4: -32 | E4: -51 | F4: -36 | G4: 27 | H4: 24 | I4: 50 | J4: -32.86 | K4: 27.41388889 | L4: x | M4: x | N4: x | O4: x | Q4: x | R4: x | S4: x | T4: x | AH4: x | AI4: x | AK4: EastLondon
A5: KOMGA | C5: EC | D5: -32 | E5: -33 | F5: -44 | G5: 27 | H5: 51 | I5: 45 | J5: -32.56222222 | K5: 27.8625 | T5: x | AI5: x | AK5: EastLondon

Sheet Bloemfontein
B1: SLA | C1: Province | D1: LAT_DEG | E1: LAT_MIN | F1: LAT_SEC | G1: LONG_DEG | H1: LONG_MIN | I1: LONG_SEC | J1: DECIMAL LATITUDE | K1: DECIMAL LONGITUDE | L1: RSGR | M1: SBC1 | N1: SBC2 | O1: SBC3 | P1: 2000 | Q1: DTT1 | R1: DTT2 | S1: SAFM | T1: LOBO | U1: SEDI | V1: EKHE | W1: HOZI | X1: METR | Y1: RAD5 | Z1: RGHP | AA1: WEZI | AB1: WALA | AC1: LTUS | AD1: PHAL | AE1: MOTS | AF1: NENE | AG1: BELA | AH1: XKFM | AI1: Regional Site | AJ1: outside sites | AK1: Probe site
A2: BLOEMFONTEIN | B2: Silver | C2: FS | D2: -29 | E2: -6 | F2: 0 | G2: 26 | H2: 13 | I2: 0 | J2: -29.1 | K2: 26.21666667 | L2: x | M2: x | N2: x | O2: x | P2: x | Q2: x | R2: x | S2: x | T2: x | U2: x | X2: x | Y2: x | AI2: x | AK2: Bloemfontein
A3: DEWETSDORP | C3: FS | D3: -29 | E3: -34 | F3: -44 | G3: 26 | H3: 39 | I3: 37 | J3: -29.57888889 | K3: 26.66027778 | N3: x | Q3: x | AI3: x | AK3: Bloemfontein
A4: JAGERSFONTEIN | C4: FS | D4: -29 | E4: -45 | F4: -23 | G4: 25 | H4: 25 | I4: 47 | J4: -29.75638889 | K4: 25.42972222 | M4: x | N4: x | O4: x | U4: x | AI4: x | AK4: Bloemfontein
A5: LADYBRAND | B5: Silver | C5: FS | D5: -29 | E5: -10 | F5: -18 | G5: 27 | H5: 22 | I5: 42 | J5: -29.17166667 | K5: 27.37833333 | L5: x | M5: x | N5: x | Q5: x | R5: x | S5: x | U5: x | AI5: x | AK5: Bloemfontein
A6: SPRINGFONTEIN | B6: Silver | C6: FS | D6: -30 | E6: -16 | F6: -14 | G6: 25 | H6: 46 | I6: 8 | J6: -30.27055556 | K6: 25.76888889 | L6: x | N6: x | P6: x | Q6: x | S6: x | T6: x | U6: x | AI6: x | AK6: Bloemfontein
A7: THABA NCHU | C7: FS | D7: -29 | E7: -15 | F7: -24 | G7: 26 | H7: 45 | I7: 45 | J7: -29.25666667 | K7: 26.7625 | U7: x | AE7: x | AI7: x | AK7: Bloemfontein
A8: THEUNISSEN | B8: Silver | C8: FS | D8: -28 | E8: -11 | F8: -55 | G8: 26 | H8: 34 | I8: 50 | J8: -28.19861111 | K8: 26.58055556 | L8: x | M8: x | N8: x | O8: x | P8: x | Q8: x | R8: x | S8: x | T8: x | U8: x | W8: x | Y8: x | AE8: x | AI8: x | AK8: Bloemfontein

Sheet Durban
B1: SLA | C1: Province | D1: LAT_DEG | E1: LAT_MIN | F1: LAT_SEC | G1: LONG_DEG | H1: LONG_MIN | I1: LONG_SEC | J1: DECIMAL LATITUDE | K1: DECIMAL LONGITUDE | L1: RSGR | M1: SBC1 | N1: SBC2 | O1: SBC3 | P1: 2000 | Q1: DTT1 | R1: DTT2 | S1: SAFM | T1: LOBO | U1: SEDI | V1: EKHE | W1: HOZI | X1: METR | Y1: RAD5 | Z1: RGHP | AA1: WEZI | AB1: WALA | AC1: LTUS | AD1: PHAL | AE1: MOTS | AF1: NENE | AG1: BELA | AH1: XKFM | AI1: Regional Site | AJ1: outside sites | AK1: Probe site
A2: DURBAN | B2: Platinum | C2: KN | D2: -29 | E2: -46 | F2: 0 | G2: 30 | H2: 40 | I2: 0 | J2: -29.76666667 | K2: 30.66666667 | L2: x | M2: x | N2: x | O2: x | P2: x | Q2: x | R2: x | S2: x | T2: x | W2: x | X2: x | Y2: x | AC2: x | AI2: x | AK2: Durban
A3: DURBAN NORTH | B3: Silver | C3: KN | D3: -29 | E3: -45 | F3: -52 | G3: 31 | H3: 2 | I3: 24 | J3: -29.76444444 | K3: 31.04 | L3: x | P3: x | S3: x | W3: x | X3: x | Y3: x | AC3: x | AI3: x | AK3: Durban
A4: OVERPORT | C4: KN | D4: -29 | E4: -50 | F4: -12 | G4: 30 | H4: 59 | I4: 44 | J4: -29.83666667 | K4: 30.99555556 | M4: x | N4: x | O4: x | Q4: x | R4: x | AI4: x | AK4: Durban
A5: PIETERMARITZBURG | B5: Silver | C5: KN | D5: -29 | E5: -34 | F5: 0 | G5: 30 | H5: 19 | I5: 0 | J5: -29.56666667 | K5: 30.31666667 | L5: x | M5: x | N5: x | O5: x | P5: x | Q5: x | R5: x | S5: x | W5: x | Y5: x | AC5: x | AI5: x | AK5: Durban
A6: THE BLUFF | B6: Silver | C6: KN | D6: -29 | E6: -54 | F6: -42 | G6: 31 | H6: 0 | I6: 44 | J6: -29.91166667 | K6: 31.01222222 | L6: x | M6: x | N6: x | O6: x | P6: x | Q6: x | R6: x | S6: x | W6: x | Y6: x | AC6: x | AI6: x | AK6: Durban
A7: VERULAM | C7: KN | D7: -29 | E7: -38 | F7: -25 | G7: 31 | H7: 2 | I7: 19 | J7: -29.64027778 | K7: 31.03861111 | M7: x | N7: x | O7: x | Q7: x | R7: x | AI7: x | AK7: Durban

Sheet Kimbely
B1: SLA | C1: Province | D1: LAT_DEG | E1: LAT_MIN | F1: LAT_SEC | G1: LONG_DEG | H1: LONG_MIN | I1: LONG_SEC | J1: DECIMAL LATITUDE | K1: DECIMAL LONGITUDE | L1: RSGR | M1: SBC1 | N1: SBC2 | O1: SBC3 | P1: 2000 | Q1: DTT1 | R1: DTT2 | S1: SAFM | T1: LOBO | U1: SEDI | V1: EKHE | W1: HOZI | X1: METR | Y1: RAD5 | Z1: RGHP | AA1: WEZI | AB1: WALA | AC1: LTUS | AD1: PHAL | AE1: MOTS | AF1: NENE | AG1: BELA | AH1: XKFM | AI1: Regional Site | AJ1: outside sites | AK1: Probe site
A2: KIMBERLEY | B2: Gold | C2: FS | D2: -28 | E2: -51 | F2: 0 | G2: 24 | H2: 54 | I2: 0 | J2: -28.85 | K2: 24.9 | L2: x | M2: x | N2: x | O2: x | P2: x | Q2: x | R2: x | S2: x | T2: x | U2: x | X2: x | Y2: x | AE2: x | AI2: x | AK2: Kimbely
A3: DOUGLAS | B3: Silver | C3: NC | D3: -29 | E3: -4 | F3: -9 | G3: 23 | H3: 31 | I3: 43 | J3: -29.06916667 | K3: 23.52861111 | L3: x | N3: x | Q3: x | S3: x | AI3: x | AK3: Kimbely
A4: CHRISTIANA | B4: =VLOOKUP(A4,'[1]RSG Sites'!$A$2:$F$133,6,FALSE) -> Silver | C4: =VLOOKUP(A4,[2]RAW!$C$2:$O$8276,13,FALSE) -> NW | D4: =VLOOKUP(A4,[2]RAW!$C$2:$J$8276,3,FALSE) -> -27 | E4: =VLOOKUP(A4,[2]RAW!$C$2:$J$8276,4,FALSE) -> -53 | F4: =VLOOKUP(A4,[2]RAW!$C$2:$J$8276,5,FALSE) -> -3 | G4: =VLOOKUP(A4,[2]RAW!$C$2:$J$8276,6,FALSE) -> 24 | H4: =VLOOKUP(A4,[2]RAW!$C$2:$J$8276,7,FALSE) -> 55 | I4: =VLOOKUP(A4,[2]RAW!$C$2:$J$8276,8,FALSE) -> 50 | J4: =VLOOKUP(A4,[3]RAW!$C$17:$BK$8270,60,FALSE) -> -27.88416667 | K4: =VLOOKUP(A4,[3]RAW!$C$17:$BK$8270,61,FALSE) -> 24.93055556 | L4: x | M4: x | N4: x | O4: x | Q4: x | R4: x | S4: x | AE4: x | AJ4: x | AK4: Kimbely

Sheet Mahikeng
B1: SLA | C1: Province | D1: LAT_DEG | E1: LAT_MIN | F1: LAT_SEC | G1: LONG_DEG | H1: LONG_MIN | I1: LONG_SEC | J1: DECIMAL LATITUDE | K1: DECIMAL LONGITUDE | L1: RSGR | M1: SBC1 | N1: SBC2 | O1: SBC3 | P1: 2000 | Q1: DTT1 | R1: DTT2 | S1: SAFM | T1: LOBO | U1: SEDI | V1: EKHE | W1: HOZI | X1: METR | Y1: RAD5 | Z1: RGHP | AA1: WEZI | AB1: WALA | AC1: LTUS | AD1: PHAL | AE1: MOTS | AF1: NENE | AG1: BELA | AH1: XKFM | AI1: Regional Site | AJ1: outside sites | AK1: Probe site
A2: ENZELSBERG | B2: Silver | C2: NW | D2: -25 | E2: -25 | F2: -7 | G2: 26 | H2: 13 | I2: 16 | J2: -25.41861111 | K2: 26.22111111 | L2: x | M2: x | N2: x | O2: x | Q2: x | S2: x | AE2: x | AI2: x | AK2: Mahikeng
A3: GROOT MARICO | B3: Bronze | C3: NW | D3: -25 | E3: -37 | F3: -11 | G3: 26 | H3: 26 | I3: 8 | J3: -25.61972222 | K3: 26.43555556 | L3: x | N3: x | Q3: x | S3: x | AE3: x | AI3: x | AK3: Mahikeng
A4: MADIBOGO | C4: NW | D4: -26 | E4: -27 | F4: -28 | G4: 25 | H4: 15 | I4: 14 | J4: -26.45777778 | K4: 25.25388889 | M4: x | N4: x | Q4: x | AE4: x | AI4: x | AK4: Mahikeng
A5: MMABATHO | C5: NW | D5: -25 | E5: -50 | F5: -22 | G5: 25 | H5: 36 | I5: 46 | J5: -25.83944444 | K5: 25.61277778 | T5: x | U5: x | AE5: x | AI5: x | AK5: Mahikeng
A6: MOTSWEDI | C6: NW | D6: -25 | E6: -16 | F6: -55 | G6: 25 | H6: 52 | I6: 18 | J6: -25.28194444 | K6: 25.87166667 | M6: x | N6: x | Q6: x | AE6: x | AI6: x | AK6: Mahikeng
A7: PIET PLESSIS | B7: Silver | C7: NW | D7: -26 | E7: -14 | F7: -56 | G7: 24 | H7: 49 | I7: 55 | J7: -26.24888889 | K7: 24.83194444 | L7: x | M7: x | N7: x | Q7: x | R7: x | S7: x | AE7: x | AI7: x | AK7: Mahikeng
A8: SWARTRUGGENS | C8: NW | D8: -25 | E8: -40 | F8: -59 | G8: 26 | H8: 48 | I8: 9 | J8: -25.68305556 | K8: 26.8025 | N8: x | Q8: x | AI8: x | AK8: Mahikeng
A9: ZEERUST | B9: Silver | C9: NW | D9: -25 | E9: -51 | F9: -37 | G9: 26 | H9: 2 | I9: 51 | J9: -25.86027778 | K9: 26.0475 | L9: x | M9: x | N9: x | O9: x | P9: x | Q9: x | R9: x | S9: x | AE9: x | AI9: x | AK9: Mahikeng

Sheet Nelspruit
B1: SLA | C1: Province | D1: LAT_DEG | E1: LAT_MIN | F1: LAT_SEC | G1: LONG_DEG | H1: LONG_MIN | I1: LONG_SEC | J1: DECIMAL LATITUDE | K1: DECIMAL LONGITUDE | L1: RSGR | M1: SBC1 | N1: SBC2 | O1: SBC3 | P1: 2000 | Q1: DTT1 | R1: DTT2 | S1: SAFM | T1: LOBO | U1: SEDI | V1: EKHE | W1: HOZI | X1: METR | Y1: RAD5 | Z1: RGHP | AA1: WEZI | AB1: WALA | AC1: LTUS | AD1: PHAL | AE1: MOTS | AF1: NENE | AG1: BELA | AH1: XKFM | AI1: Regional Site | AJ1: outside sites | AK1: Probe site
A2: CAROLINA | B2: Silver | C2: MP | D2: -26 | E2: -10 | F2: -37 | G2: 30 | H2: 37 | I2: 57 | J2: -26.17694444 | K2: 30.6325 | L2: x | M2: x | N2: x | Q2: x | R2: x | S2: x | W2: x | AB2: x | AI2: x | AK2: Nelspruit
A3: DULLSTROOM | B3: Silver | C3: MP | D3: -25 | E3: -34 | F3: -21 | G3: 30 | H3: 11 | I3: 17 | J3: -25.5725 | K3: 30.18805556 | L3: x | M3: x | N3: x | Q3: x | S3: x | W3: x | AA3: x | AB3: x | AG3: x | AI3: x | AK3: Nelspruit
A4: HECTORSPRUIT | C4: MP | D4: -25 | E4: -28 | F4: -47 | G4: 31 | H4: 36 | I4: 20 | J4: -25.47972222 | K4: 31.60555556 | M4: x | N4: x | Q4: x | AB4: x | AI4: x | AK4: Nelspruit
A5: LYDENBURG | B5: Bronze | C5: MP | D5: -25 | E5: -6 | F5: -20 | G5: 30 | H5: 26 | I5: 3 | J5: -25.10555556 | K5: 30.43416667 | L5: x | N5: x | Q5: x | S5: x | AB5: x | AI5: x | AK5: Nelspruit
A6: NELSPRUIT | B6: Gold | C6: MP | D6: -25 | E6: -30 | F6: -57 | G6: 30 | H6: 46 | I6: 33 | J6: -25.51583333 | K6: 30.77583333 | L6: x | M6: x | N6: x | O6: x | P6: x | Q6: x | R6: x | S6: x | X6: x | Y6: x | AB6: x | AF6: x | AI6: x | AK6: Nelspruit
A7: SABIE | B7: Bronze | C7: MP | D7: -25 | E7: -7 | F7: -46 | G7: 30 | H7: 45 | I7: 35 | J7: -25.12944444 | K7: 30.75972222 | L7: x | M7: x | N7: x | R7: x | S7: x | AB7: x | AI7: x | AK7: Nelspruit

Sheet Polokwane
B1: SLA | C1: Province | D1: LAT_DEG | E1: LAT_MIN | F1: LAT_SEC | G1: LONG_DEG | H1: LONG_MIN | I1: LONG_SEC | J1: DECIMAL LATITUDE | K1: DECIMAL LONGITUDE | L1: RSGR | M1: SBC1 | N1: SBC2 | O1: SBC3 | P1: 2000 | Q1: DTT1 | R1: DTT2 | S1: SAFM | T1: LOBO | U1: SEDI | V1: EKHE | W1: HOZI | X1: METR | Y1: RAD5 | Z1: RGHP | AA1: WEZI | AB1: WALA | AC1: LTUS | AD1: PHAL | AE1: MOTS | AF1: NENE | AG1: BELA | AH1: XKFM | AI1: Regional Site | AJ1: outside sites | AK1: Probe site
A2: BLOUBERG | B2: Bronze | C2: LP | D2: -23 | E2: -4 | F2: -19 | G2: 28 | H2: 59 | I2: 12 | J2: -23.07194444 | K2: 28.98666667 | L2: x | S2: x | AG2: x | AI2: x | AK2: Polokwane
A3: HAENERTSBURG | C3: LP | D3: -23 | E3: -59 | F3: -54 | G3: 29 | H3: 56 | I3: 48 | J3: -23.99833333 | K3: 29.94666667 | AG3: x | AI3: x | AK3: Polokwane
A4: LOUIS TRICHARDT | B4: Silver | C4: LP | D4: -23 | E4: 0 | F4: -2 | G4: 29 | H4: 45 | I4: 26 | J4: -23.00055556 | K4: 29.75722222 | L4: x | M4: x | N4: x | O4: x | P4: x | Q4: x | R4: x | S4: x | AD4: x | AF4: x | AG4: x | AI4: x | AK4: Polokwane
A5: POTGIETERSRUS | B5: Platinum | C5: LP | D5: -24 | E5: -9 | F5: -24 | G5: 29 | H5: 14 | I5: 10 | J5: -24.15666667 | K5: 29.23611111 | L5: x | M5: x | N5: x | O5: x | P5: x | Q5: x | R5: x | X5: x | Y5: x | AA5: x | AD5: x | AF5: x | AG5: x | AI5: x | AK5: Polokwane
A6: TZANEEN | B6: Silver | C6: LP | D6: -23 | E6: -47 | F6: -6 | G6: 30 | H6: 0 | I6: 17 | J6: -23.785 | K6: 30.00472222 | L6: x | M6: x | N6: x | O6: x | P6: x | Q6: x | R6: x | S6: x | AD6: x | AF6: x | AG6: x | AI6: x | AK6: Polokwane

Sheet Port Elizabeth
B1: SLA | C1: Province | D1: LAT_DEG | E1: LAT_MIN | F1: LAT_SEC | G1: LONG_DEG | H1: LONG_MIN | I1: LONG_SEC | J1: DECIMAL LATITUDE | K1: DECIMAL LONGITUDE | L1: RSGR | M1: SBC1 | N1: SBC2 | O1: SBC3 | P1: 2000 | Q1: DTT1 | R1: DTT2 | S1: SAFM | T1: LOBO | U1: SEDI | V1: EKHE | W1: HOZI | X1: METR | Y1: RAD5 | Z1: RGHP | AA1: WEZI | AB1: WALA | AC1: LTUS | AD1: PHAL | AE1: MOTS | AF1: NENE | AG1: BELA | AH1: XKFM | AI1: Regional Site | AJ1: outside sites | AK1: Probe site
A2: ALIWAL NORTH | B2: Silver | C2: EC | D2: -30 | E2: -47 | F2: -5 | G2: 26 | H2: 34 | I2: 0 | J2: -30.78472222 | K2: 26.56666667 | L2: x | M2: x | N2: x | Q2: x | R2: x | S2: x | T2: x | U2: x | AI2: x | AK2: Port Elizabeth
A3: ANDRIESKRAAL | B3: Bronze | C3: EC | D3: -33 | E3: -46 | F3: -42 | G3: 24 | H3: 42 | I3: 35 | J3: -33.77833333 | K3: 24.70972222 | L3: x | M3: x | N3: x | O3: x | Q3: x | S3: x | T3: x | AI3: x | AK3: Port Elizabeth
A4: DESPATCH | C4: EC | D4: -33 | E4: -45 | F4: -53 | G4: 25 | H4: 25 | I4: 29 | J4: -33.76472222 | K4: 25.42472222 | M4: x | N4: x | O4: x | Q4: x | R4: x | AI4: x | AK4: Port Elizabeth
A5: GRAHAMSTOWN | B5: Gold | C5: EC | D5: -33 | E5: -19 | F5: -42 | G5: 26 | H5: 30 | I5: 4 | J5: -33.32833333 | K5: 26.50111111 | L5: x | M5: x | N5: x | O5: x | P5: x | Q5: x | R5: x | S5: x | T5: x | Y5: x | AI5: x | AK5: Port Elizabeth
A6: HANKEY | B6: Bronze | C6: EC | D6: -33 | E6: -49 | F6: -52 | G6: 24 | H6: 52 | I6: 12 | J6: -33.83111111 | K6: 24.87 | L6: x | M6: x | N6: x | O6: x | Q6: x | S6: x | T6: x | AI6: x | AK6: Port Elizabeth
A7: KIRKWOOD | C7: EC | D7: -33 | E7: -23 | F7: -22 | G7: 25 | H7: 26 | I7: 53 | J7: -33.38944444 | K7: 25.44805556 | N7: x | Q7: x | AI7: x | AK7: Port Elizabeth
A8: PARSONS HILL | B8: Bronze | C8: EC | D8: -33 | E8: -57 | F8: -11 | G8: 25 | H8: 35 | I8: 19 | J8: -33.95305556 | K8: 25.58861111 | L8: x | P8: x | S8: x | T8: x | X8: x | AI8: x | AK8: Port Elizabeth
A9: PATENSIE | B9: Bronze | C9: EC | D9: -33 | E9: -45 | F9: -39 | G9: 24 | H9: 49 | I9: 37 | J9: -33.76083333 | K9: 24.82694444 | L9: x | M9: x | N9: x | O9: x | Q9: x | S9: x | T9: x | AI9: x | AK9: Port Elizabeth
A10: PAUL SAUER DAM | B10: Bronze | C10: EC | D10: -33 | E10: -45 | F10: -13 | G10: 24 | H10: 33 | I10: 43 | J10: -33.75361111 | K10: 24.56194444 | L10: x | M10: x | N10: x | O10: x | Q10: x | S10: x | T10: x | AI10: x | AK10: Port Elizabeth
A11: PORT ELIZABETH | B11: Gold | C11: EC | D11: -33 | E11: -56 | F11: -10 | G11: 25 | H11: 26 | I11: 27 | J11: -33.93611111 | K11: 25.44083333 | L11: x | M11: x | N11: x | O11: x | P11: x | Q11: x | R11: x | S11: x | T11: x | X11: x | Y11: x | AC11: x | AI11: x | AK11: Port Elizabeth
A12: PORT ELIZABETH CITY | C12: EC | D12: -33 | E12: -55 | F12: -28 | G12: 25 | H12: 35 | I12: 29 | J12: -33.92444444 | K12: 25.59138889 | M12: x | N12: x | O12: x | Q12: x | R12: x | AI12: x | AK12: Port Elizabeth
A13: SUURBERG | B13: Silver | C13: EC | D13: -33 | E13: -14 | F13: -55 | G13: 25 | H13: 34 | I13: 27 | J13: -33.24861111 | K13: 25.57416667 | L13: x | M13: x | N13: x | O13: x | Q13: x | R13: x | S13: x | T13: x | AI13: x | AK13: Port Elizabeth
A14: KAREEDOUW | B14: =VLOOKUP(A14,'[1]RSG Sites'!$A$2:$F$133,6,FALSE) -> Silver | C14: =VLOOKUP(A14,[2]RAW!$C$2:$O$8276,13,FALSE) -> EC | D14: =VLOOKUP(A14,[2]RAW!$C$2:$J$8276,3,FALSE) -> -33 | E14: =VLOOKUP(A14,[2]RAW!$C$2:$J$8276,4,FALSE) -> -57 | F14: =VLOOKUP(A14,[2]RAW!$C$2:$J$8276,5,FALSE) -> -48 | G14: =VLOOKUP(A14,[2]RAW!$C$2:$J$8276,6,FALSE) -> 24 | H14: =VLOOKUP(A14,[2]RAW!$C$2:$J$8276,7,FALSE) -> 17 | I14: =VLOOKUP(A14,[2]RAW!$C$2:$J$8276,8,FALSE) -> 15 | J14: =VLOOKUP(A14,[3]RAW!$C$17:$BK$8270,60,FALSE) -> -34.02472222 | K14: =VLOOKUP(A14,[3]RAW!$C$17:$BK$8270,61,FALSE) -> 24.43 | L14: x | M14: x | N14: x | Q14: x | S14: x | T14: x | AI14: x | AK14: Port Elizabeth

Sheet Seapoint
B1: SLA | C1: Province | D1: LAT_DEG | E1: LAT_MIN | F1: LAT_SEC | G1: LONG_DEG | H1: LONG_MIN | I1: LONG_SEC | J1: DECIMAL LATITUDE | K1: DECIMAL LONGITUDE | L1: RSGR | M1: SBC1 | N1: SBC2 | O1: SBC3 | P1: 2000 | Q1: DTT1 | R1: DTT2 | S1: SAFM | T1: LOBO | U1: SEDI | V1: EKHE | W1: HOZI | X1: METR | Y1: RAD5 | Z1: RGHP | AA1: WEZI | AB1: WALA | AC1: LTUS | AD1: PHAL | AE1: MOTS | AF1: NENE | AG1: BELA | AH1: XKFM | AI1: Regional Site | AJ1: outside sites | AK1: Probe site
A2: AMANDA GLEN | C2: WC | D2: -33 | E2: -51 | F2: -18 | G2: 18 | H2: 40 | I2: 33 | J2: -33.855 | K2: 18.67583333 | M2: x | N2: x | O2: x | AI2: x | AK2: Seapoint
A3: AURORA | C3: WC | D3: -33 | E3: -49 | F3: -39 | G3: 18 | H3: 38 | I3: 29 | J3: -33.8275 | K3: 18.64138889 | M3: x | N3: x | O3: x | Q3: x | R3: x | AI3: x | AK3: Seapoint
A4: CAPE TOWN | B4: Platinum | C4: WC | D4: -34 | E4: -3 | F4: -18 | G4: 18 | H4: 23 | I4: 11 | J4: -34.055 | K4: 18.38638889 | L4: x | M4: x | N4: x | O4: x | P4: x | Q4: x | R4: x | S4: x | T4: x | Y4: x | Z4: x | AI4: x | AK4: Seapoint
A5: CLIFTON | C5: WC | D5: -33 | E5: -56 | F5: -31 | G5: 18 | H5: 22 | I5: 36 | J5: -33.94194444 | K5: 18.37666667 | M5: x | N5: x | O5: x | Q5: x | R5: x | AI5: x | AK5: Seapoint
A6: FISHHOEK | C6: WC | D6: -34 | E6: -8 | F6: -59 | G6: 18 | H6: 26 | I6: 8 | J6: -34.14972222 | K6: 18.43555556 | M6: x | N6: x | O6: x | Q6: x | R6: x | AI6: x | AK6: Seapoint
A7: FRANSCHHOEK | B7: Silver | C7: WC | D7: -33 | E7: -54 | F7: -26 | G7: 19 | H7: 4 | I7: 23 | J7: -33.90722222 | K7: 19.07305556 | L7: x | M7: x | N7: x | O7: x | P7: x | Q7: x | R7: x | S7: x | T7: x | Z7: x | AI7: x | AK7: Seapoint
A8: GRABOUW | B8: Silver | C8: WC | D8: -34 | E8: -6 | F8: -7 | G8: 18 | H8: 58 | I8: 0 | J8: -34.10194444 | K8: 18.96666667 | L8: x | M8: x | N8: x | O8: x | Q8: x | R8: x | S8: x | AI8: x | AK8: Seapoint
A9: PAARL | B9: Silver | C9: WC | D9: -33 | E9: -42 | F9: -51 | G9: 18 | H9: 56 | I9: 23 | J9: -33.71416667 | K9: 18.93972222 | L9: x | M9: x | N9: x | O9: x | P9: x | Q9: x | R9: x | S9: x | T9: x | Y9: x | Z9: x | AI9: x | AK9: Seapoint
A10: SEA POINT | B10: Bronze | C10: WC | D10: -33 | E10: -54 | F10: -33 | G10: 18 | H10: 23 | I10: 51 | J10: -33.90916667 | K10: 18.3975 | L10: x | M10: x | N10: x | O10: x | P10: x | Q10: x | R10: x | S10: x | T10: x | X10: x | Y10: x | Z10: x | AI10: x | AK10: Seapoint
A11: SIMONSTOWN | B11: Silver | C11: WC | D11: -34 | E11: -11 | F11: -55 | G11: 18 | H11: 25 | I11: 36 | J11: -34.19861111 | K11: 18.42666667 | L11: x | M11: x | N11: x | O11: x | P11: x | Q11: x | R11: x | S11: x | Y11: x | Z11: x | AI11: x | AK11: Seapoint
A12: STELLENBOSCH | B12: Bronze | C12: WC | D12: -33 | E12: -54 | F12: -59 | G12: 18 | H12: 52 | I12: 10 | J12: -33.91638889 | K12: 18.86944444 | L12: x | M12: x | N12: x | O12: x | P12: x | Q12: x | R12: x | S12: x | T12: x | Y12: x | Z12: x | AI12: x | AK12: Seapoint
A13: TABLE MOUNTAIN | B13: Silver | C13: WC | D13: -33 | E13: -57 | F13: -26 | G13: 18 | H13: 24 | I13: 11 | J13: -33.95722222 | K13: 18.40305556 | L13: x | M13: x | N13: x | O13: x | P13: x | Q13: x | R13: x | S13: x | T13: x | X13: x | Y13: x | Z13: x | AI13: x | AK13: Seapoint
A14: TYGERBERG | B14: Gold | C14: WC | D14: -33 | E14: -52 | F14: -31 | G14: 18 | H14: 35 | I14: 44 | J14: -33.87527778 | K14: 18.59555556 | L14: x | M14: x | N14: x | O14: x | P14: x | Q14: x | R14: x | S14: x | X14: x | Y14: x | Z14: x | AC14: x | AI14: x | AK14: Seapoint
A15: HOUT BAY | B15: =VLOOKUP(A15,'[1]RSG Sites'!$A$2:$F$133,6,FALSE) -> Silver | C15: =VLOOKUP(A15,[2]RAW!$C$2:$O$8276,13,FALSE) -> WC | D15: =VLOOKUP(A15,[2]RAW!$C$2:$J$8276,3,FALSE) -> -34 | E15: =VLOOKUP(A15,[2]RAW!$C$2:$J$8276,4,FALSE) -> 0 | F15: =VLOOKUP(A15,[2]RAW!$C$2:$J$8276,5,FALSE) -> -46 | G15: =VLOOKUP(A15,[2]RAW!$C$2:$J$8276,6,FALSE) -> 18 | H15: =VLOOKUP(A15,[2]RAW!$C$2:$J$8276,7,FALSE) -> 20 | I15: =VLOOKUP(A15,[2]RAW!$C$2:$J$8276,8,FALSE) -> 51 | J15: =VLOOKUP(A15,[3]RAW!$C$17:$BK$8270,60,FALSE) -> -34.01277778 | K15: =VLOOKUP(A15,[3]RAW!$C$17:$BK$8270,61,FALSE) -> 18.3475 | L15: x | M15: x | N15: x | O15: x | P15: x | Q15: x | R15: x | S15: x | Y15: x | Z15: x | AI15: x | AK15: Seapoint

Sheet Thohoyandou
B1: SLA | C1: Province | D1: LAT_DEG | E1: LAT_MIN | F1: LAT_SEC | G1: LONG_DEG | H1: LONG_MIN | I1: LONG_SEC | J1: DECIMAL LATITUDE | K1: DECIMAL LONGITUDE | L1: RSGR | M1: SBC1 | N1: SBC2 | O1: SBC3 | P1: 2000 | Q1: DTT1 | R1: DTT2 | S1: SAFM | T1: LOBO | U1: SEDI | V1: EKHE | W1: HOZI | X1: METR | Y1: RAD5 | Z1: RGHP | AA1: WEZI | AB1: WALA | AC1: LTUS | AD1: PHAL | AE1: MOTS | AF1: NENE | AG1: BELA | AH1: XKFM | AI1: Regional Site | AJ1: outside sites | AK1: Probe site
A2: DZAMBA | C2: LP | D2: -22 | E2: -49 | F2: -5 | G2: 30 | H2: 18 | I2: 41 | J2: -22.81805556 | K2: 30.31138889 | M2: x | N2: x | Q2: x | AD2: x | AI2: x | AK2: Thohoyandou
A3: GABA | C3: LP | D3: -22 | E3: -47 | F3: -2 | G3: 30 | H3: 42 | I3: 25 | J3: -22.78388889 | K3: 30.70694444 | M3: x | N3: x | Q3: x | AD3: x | AF3: x | AI3: x | AK3: Thohoyandou
A4: MALAMBA | C4: LP | D4: -22 | E4: -53 | F4: -56 | G4: 30 | H4: 15 | I4: 9 | J4: -22.89888889 | K4: 30.2525 | M4: x | N4: x | Q4: x | AD4: x | AI4: x | AK4: Thohoyandou
A5: PUNDA MARIA | C5: LP | D5: -22 | E5: -43 | F5: -28 | G5: 30 | H5: 59 | I5: 19 | J5: -22.72444444 | K5: 30.98861111 | AD5: x | AF5: x | AI5: x | AK5: Thohoyandou
A6: SIBASA | C6: LP | D6: -22 | E6: -56 | F6: -57 | G6: 30 | H6: 26 | I6: 54 | J6: -22.94916667 | K6: 30.44833333 | M6: x | N6: x | O6: x | Q6: x | R6: x | AD6: x | AI6: x | AK6: Thohoyandou
A7: TSHAMAVUDZI | C7: LP | D7: -22 | E7: -39 | F7: -15 | G7: 30 | H7: 31 | I7: 42 | J7: -22.65416667 | K7: 30.52833333 | M7: x | N7: x | Q7: x | AD7: x | AG7: x | AI7: x | AK7: Thohoyandou

Sheet Hatfield
B1: SLA | C1: Province | D1: LAT_DEG | E1: LAT_MIN | F1: LAT_SEC | G1: LONG_DEG | H1: LONG_MIN | I1: LONG_SEC | J1: DECIMAL LATITUDE | K1: DECIMAL LONGITUDE | L1: RSGR | M1: SBC1 | N1: SBC2 | O1: SBC3 | P1: 2000 | Q1: DTT1 | R1: DTT2 | S1: SAFM | T1: LOBO | U1: SEDI | V1: EKHE | W1: HOZI | X1: METR | Y1: RAD5 | Z1: RGHP | AA1: WEZI | AB1: WALA | AC1: LTUS | AD1: PHAL | AE1: MOTS | AF1: NENE | AG1: BELA | AH1: XKFM | AI1: Regional Site | AJ1: outside sites | AK1: Probe site
A2: KWAGGAFONTEIN | B2: =VLOOKUP(A2,'[1]RSG Sites'!$A$2:$F$133,6,FALSE) ->  | C2: =VLOOKUP(A2,[2]RAW!$C$2:$O$8276,13,FALSE) -> MP | D2: =VLOOKUP(A2,[2]RAW!$C$2:$J$8276,3,FALSE) -> -25 | E2: =VLOOKUP(A2,[2]RAW!$C$2:$J$8276,4,FALSE) -> -14 | F2: =VLOOKUP(A2,[2]RAW!$C$2:$J$8276,5,FALSE) -> -37 | G2: =VLOOKUP(A2,[2]RAW!$C$2:$J$8276,6,FALSE) -> 28 | H2: =VLOOKUP(A2,[2]RAW!$C$2:$J$8276,7,FALSE) -> 57 | I2: =VLOOKUP(A2,[2]RAW!$C$2:$J$8276,8,FALSE) -> 27 | J2: =VLOOKUP(A2,[3]RAW!$C$17:$BK$8270,60,FALSE) -> -25.24361111 | K2: =VLOOKUP(A2,[3]RAW!$C$17:$BK$8270,61,FALSE) -> 28.9575 | AA2: x | AG2: x | AI2: x | AK2: Hatfield
A3: KWAMHLANGA | B3: =VLOOKUP(A3,'[1]RSG Sites'!$A$2:$F$133,6,FALSE) ->  | C3: =VLOOKUP(A3,[2]RAW!$C$2:$O$8276,13,FALSE) -> MP | D3: =VLOOKUP(A3,[2]RAW!$C$2:$J$8276,3,FALSE) -> -25 | E3: =VLOOKUP(A3,[2]RAW!$C$2:$J$8276,4,FALSE) -> -26 | F3: =VLOOKUP(A3,[2]RAW!$C$2:$J$8276,5,FALSE) -> -22 | G3: =VLOOKUP(A3,[2]RAW!$C$2:$J$8276,6,FALSE) -> 28 | H3: =VLOOKUP(A3,[2]RAW!$C$2:$J$8276,7,FALSE) -> 30 | I3: =VLOOKUP(A3,[2]RAW!$C$2:$J$8276,8,FALSE) -> 49 | J3: =VLOOKUP(A3,[3]RAW!$C$17:$BK$8270,60,FALSE) -> -25.43944444 | K3: =VLOOKUP(A3,[3]RAW!$C$17:$BK$8270,61,FALSE) -> 28.51361111 | AA3: x | AI3: x | AK3: Hatfield
A4: MIDDELBURG | B4: =VLOOKUP(A4,'[1]RSG Sites'!$A$2:$F$133,6,FALSE) -> Gold | C4: =VLOOKUP(A4,[2]RAW!$C$2:$O$8276,13,FALSE) -> MP | D4: =VLOOKUP(A4,[2]RAW!$C$2:$J$8276,3,FALSE) -> -25 | E4: =VLOOKUP(A4,[2]RAW!$C$2:$J$8276,4,FALSE) -> -49 | F4: =VLOOKUP(A4,[2]RAW!$C$2:$J$8276,5,FALSE) -> -4 | G4: =VLOOKUP(A4,[2]RAW!$C$2:$J$8276,6,FALSE) -> 29 | H4: =VLOOKUP(A4,[2]RAW!$C$2:$J$8276,7,FALSE) -> 23 | I4: =VLOOKUP(A4,[2]RAW!$C$2:$J$8276,8,FALSE) -> 24 | J4: =VLOOKUP(A4,[3]RAW!$C$17:$BK$8270,60,FALSE) -> -25.81777778 | K4: =VLOOKUP(A4,[3]RAW!$C$17:$BK$8270,61,FALSE) -> 29.39 | L4: x | M4: x | N4: x | O4: x | P4: x | Q4: x | R4: x | S4: x | W4: x | X4: x | Y4: x | AA4: x | AB4: x | AG4: x | AI4: x | AK4: Hatfield
A5: PANKOP | B5: =VLOOKUP(A5,'[1]RSG Sites'!$A$2:$F$133,6,FALSE) ->  | C5: =VLOOKUP(A5,[2]RAW!$C$2:$O$8276,13,FALSE) -> MP | D5: =VLOOKUP(A5,[2]RAW!$C$2:$J$8276,3,FALSE) -> -25 | E5: =VLOOKUP(A5,[2]RAW!$C$2:$J$8276,4,FALSE) -> -9 | F5: =VLOOKUP(A5,[2]RAW!$C$2:$J$8276,5,FALSE) -> -44 | G5: =VLOOKUP(A5,[2]RAW!$C$2:$J$8276,6,FALSE) -> 28 | H5: =VLOOKUP(A5,[2]RAW!$C$2:$J$8276,7,FALSE) -> 24 | I5: =VLOOKUP(A5,[2]RAW!$C$2:$J$8276,8,FALSE) -> 16 | J5: =VLOOKUP(A5,[3]RAW!$C$17:$BK$8270,60,FALSE) -> -25.16222222 | K5: =VLOOKUP(A5,[3]RAW!$C$17:$BK$8270,61,FALSE) -> 28.40444444 | AE5: x | AI5: x | AK5: Hatfield
A6: RUSTENBURG | B6: =VLOOKUP(A6,'[1]RSG Sites'!$A$2:$F$133,6,FALSE) -> Silver | C6: =VLOOKUP(A6,[2]RAW!$C$2:$O$8276,13,FALSE) -> NW | D6: =VLOOKUP(A6,[2]RAW!$C$2:$J$8276,3,FALSE) -> -25 | E6: =VLOOKUP(A6,[2]RAW!$C$2:$J$8276,4,FALSE) -> -36 | F6: =VLOOKUP(A6,[2]RAW!$C$2:$J$8276,5,FALSE) -> -59 | G6: =VLOOKUP(A6,[2]RAW!$C$2:$J$8276,6,FALSE) -> 27 | H6: =VLOOKUP(A6,[2]RAW!$C$2:$J$8276,7,FALSE) -> 7 | I6: =VLOOKUP(A6,[2]RAW!$C$2:$J$8276,8,FALSE) -> 5 | J6: =VLOOKUP(A6,[3]RAW!$C$17:$BK$8270,60,FALSE) -> -25.61638889 | K6: =VLOOKUP(A6,[3]RAW!$C$17:$BK$8270,61,FALSE) -> 27.11805556 | L6: x | M6: x | N6: x | O6: x | P6: x | Q6: x | R6: x | S6: x | X6: x | AE6: x | AI6: x | AK6: Hatfield

Sheet George
B1: SLA | C1: Province | D1: LAT_DEG | E1: LAT_MIN | F1: LAT_SEC | G1: LONG_DEG | H1: LONG_MIN | I1: LONG_SEC | J1: DECIMAL LATITUDE | K1: DECIMAL LONGITUDE | L1: RSGR | M1: SBC1 | N1: SBC2 | O1: SBC3 | P1: 2000 | Q1: DTT1 | R1: DTT2 | S1: SAFM | T1: LOBO | U1: SEDI | V1: EKHE | W1: HOZI | X1: METR | Y1: RAD5 | Z1: RGHP | AA1: WEZI | AB1: WALA | AC1: LTUS | AD1: PHAL | AE1: MOTS | AF1: NENE | AG1: BELA | AH1: XKFM | AI1: Regional Site | AJ1: outside sites | AK1: Probe site
A2: GEORGE | B2: =VLOOKUP(A2,'[1]RSG Sites'!$A$2:$F$133,6,FALSE) -> Gold | C2: =VLOOKUP(A2,[2]RAW!$C$2:$O$8276,13,FALSE) -> WC | D2: =VLOOKUP(A2,[2]RAW!$C$2:$J$8276,3,FALSE) -> -33 | E2: =VLOOKUP(A2,[2]RAW!$C$2:$J$8276,4,FALSE) -> -55 | F2: =VLOOKUP(A2,[2]RAW!$C$2:$J$8276,5,FALSE) -> -38 | G2: =VLOOKUP(A2,[2]RAW!$C$2:$J$8276,6,FALSE) -> 22 | H2: =VLOOKUP(A2,[2]RAW!$C$2:$J$8276,7,FALSE) -> 27 | I2: =VLOOKUP(A2,[2]RAW!$C$2:$J$8276,8,FALSE) -> 3 | J2: =VLOOKUP(A2,[3]RAW!$C$17:$BK$8270,60,FALSE) -> -33.92722222 | K2: =VLOOKUP(A2,[3]RAW!$C$17:$BK$8270,61,FALSE) -> 22.45083333 | L2: x | M2: x | N2: x | O2: x | P2: x | Q2: x | R2: x | S2: x | T2: x | W2: x | Y2: x | AI2: x | AK2: George
A3: GROOT BRAKRIVIER | B3: =VLOOKUP(A3,'[1]RSG Sites'!$A$2:$F$133,6,FALSE) ->  | C3: =VLOOKUP(A3,[2]RAW!$C$2:$O$8276,13,FALSE) -> WC | D3: =VLOOKUP(A3,[2]RAW!$C$2:$J$8276,3,FALSE) -> -34 | E3: =VLOOKUP(A3,[2]RAW!$C$2:$J$8276,4,FALSE) -> -1 | F3: =VLOOKUP(A3,[2]RAW!$C$2:$J$8276,5,FALSE) -> -55 | G3: =VLOOKUP(A3,[2]RAW!$C$2:$J$8276,6,FALSE) -> 22 | H3: =VLOOKUP(A3,[2]RAW!$C$2:$J$8276,7,FALSE) -> 12 | I3: =VLOOKUP(A3,[2]RAW!$C$2:$J$8276,8,FALSE) -> 57 | J3: =VLOOKUP(A3,[3]RAW!$C$17:$BK$8270,60,FALSE) -> -34.03194444 | K3: =VLOOKUP(A3,[3]RAW!$C$17:$BK$8270,61,FALSE) -> 22.21583333 | M3: x | N3: x | O3: x | Q3: x | AI3: x | AK3: George
A4: KNYSNA | B4: =VLOOKUP(A4,'[1]RSG Sites'!$A$2:$F$133,6,FALSE) -> Silver | C4: =VLOOKUP(A4,[2]RAW!$C$2:$O$8276,13,FALSE) -> WC | D4: =VLOOKUP(A4,[2]RAW!$C$2:$J$8276,3,FALSE) -> -34 | E4: =VLOOKUP(A4,[2]RAW!$C$2:$J$8276,4,FALSE) -> -4 | F4: =VLOOKUP(A4,[2]RAW!$C$2:$J$8276,5,FALSE) -> -38 | G4: =VLOOKUP(A4,[2]RAW!$C$2:$J$8276,6,FALSE) -> 23 | H4: =VLOOKUP(A4,[2]RAW!$C$2:$J$8276,7,FALSE) -> 2 | I4: =VLOOKUP(A4,[2]RAW!$C$2:$J$8276,8,FALSE) -> 58 | J4: =VLOOKUP(A4,[3]RAW!$C$17:$BK$8270,60,FALSE) -> -34.07138889 | K4: =VLOOKUP(A4,[3]RAW!$C$17:$BK$8270,61,FALSE) -> 23.04194444 | L4: x | M4: x | N4: x | O4: x | P4: x | Q4: x | R4: x | S4: x | T4: x | AA4: x | AI4: x | AK4: George
A5: OUDTSHOORN | B5: =VLOOKUP(A5,'[1]RSG Sites'!$A$2:$F$133,6,FALSE) -> Gold | C5: =VLOOKUP(A5,[2]RAW!$C$2:$O$8276,13,FALSE) -> WC | D5: =VLOOKUP(A5,[2]RAW!$C$2:$J$8276,3,FALSE) -> -33 | E5: =VLOOKUP(A5,[2]RAW!$C$2:$J$8276,4,FALSE) -> -34 | F5: =VLOOKUP(A5,[2]RAW!$C$2:$J$8276,5,FALSE) -> -49 | G5: =VLOOKUP(A5,[2]RAW!$C$2:$J$8276,6,FALSE) -> 22 | H5: =VLOOKUP(A5,[2]RAW!$C$2:$J$8276,7,FALSE) -> 13 | I5: =VLOOKUP(A5,[2]RAW!$C$2:$J$8276,8,FALSE) -> 35 | J5: =VLOOKUP(A5,[3]RAW!$C$17:$BK$8270,60,FALSE) -> -33.67138889 | K5: =VLOOKUP(A5,[3]RAW!$C$17:$BK$8270,61,FALSE) -> 22.26694444 | L5: x | M5: x | N5: x | O5: x | P5: x | Q5: x | R5: x | S5: x | T5: x | Y5: x | AI5: x | AK5: George
A6: PLETTENBERG BAY | B6: =VLOOKUP(A6,'[1]RSG Sites'!$A$2:$F$133,6,FALSE) -> Silver | C6: =VLOOKUP(A6,[2]RAW!$C$2:$O$8276,13,FALSE) -> WC | D6: =VLOOKUP(A6,[2]RAW!$C$2:$J$8276,3,FALSE) -> -34 | E6: =VLOOKUP(A6,[2]RAW!$C$2:$J$8276,4,FALSE) -> -3 | F6: =VLOOKUP(A6,[2]RAW!$C$2:$J$8276,5,FALSE) -> -34 | G6: =VLOOKUP(A6,[2]RAW!$C$2:$J$8276,6,FALSE) -> 23 | H6: =VLOOKUP(A6,[2]RAW!$C$2:$J$8276,7,FALSE) -> 22 | I6: =VLOOKUP(A6,[2]RAW!$C$2:$J$8276,8,FALSE) -> 25 | J6: =VLOOKUP(A6,[3]RAW!$C$17:$BK$8270,60,FALSE) -> -34.05944444 | K6: =VLOOKUP(A6,[3]RAW!$C$17:$BK$8270,61,FALSE) -> 23.37361111 | L6: x | M6: x | N6: x | O6: x | Q6: x | R6: x | S6: x | T6: x | Z6: x | AI6: x | AK6: George
A7: RIVERSDALE | B7: =VLOOKUP(A7,'[1]RSG Sites'!$A$2:$F$133,6,FALSE) -> Silver | C7: =VLOOKUP(A7,[2]RAW!$C$2:$O$8276,13,FALSE) -> WC | D7: =VLOOKUP(A7,[2]RAW!$C$2:$J$8276,3,FALSE) -> -34 | E7: =VLOOKUP(A7,[2]RAW!$C$2:$J$8276,4,FALSE) -> -5 | F7: =VLOOKUP(A7,[2]RAW!$C$2:$J$8276,5,FALSE) -> -58 | G7: =VLOOKUP(A7,[2]RAW!$C$2:$J$8276,6,FALSE) -> 21 | H7: =VLOOKUP(A7,[2]RAW!$C$2:$J$8276,7,FALSE) -> 15 | I7: =VLOOKUP(A7,[2]RAW!$C$2:$J$8276,8,FALSE) -> 31 | J7: =VLOOKUP(A7,[3]RAW!$C$17:$BK$8270,60,FALSE) -> -34.01888889 | K7: =VLOOKUP(A7,[3]RAW!$C$17:$BK$8270,61,FALSE) -> 21.1275 | L7: x | M7: x | N7: x | S7: x | Z7: x | AI7: x | AK7: George
A8: UNIONDALE | B8: =VLOOKUP(A8,'[1]RSG Sites'!$A$2:$F$133,6,FALSE) -> Bronze | C8: =VLOOKUP(A8,[2]RAW!$C$2:$O$8276,13,FALSE) -> WC | D8: =VLOOKUP(A8,[2]RAW!$C$2:$J$8276,3,FALSE) -> -33 | E8: =VLOOKUP(A8,[2]RAW!$C$2:$J$8276,4,FALSE) -> -43 | F8: =VLOOKUP(A8,[2]RAW!$C$2:$J$8276,5,FALSE) -> -24 | G8: =VLOOKUP(A8,[2]RAW!$C$2:$J$8276,6,FALSE) -> 23 | H8: =VLOOKUP(A8,[2]RAW!$C$2:$J$8276,7,FALSE) -> 3 | I8: =VLOOKUP(A8,[2]RAW!$C$2:$J$8276,8,FALSE) -> 2 | J8: =VLOOKUP(A8,[3]RAW!$C$17:$BK$8270,60,FALSE) -> -33.72333333 | K8: =VLOOKUP(A8,[3]RAW!$C$17:$BK$8270,61,FALSE) -> 23.05055556 | L8: x | N8: x | Q8: x | S8: x | AI8: x | AK8: George
A9: UNIONDALE TOWN | B9: =VLOOKUP(A9,'[1]RSG Sites'!$A$2:$F$133,6,FALSE) ->  | C9: =VLOOKUP(A9,[2]RAW!$C$2:$O$8276,13,FALSE) -> WC | D9: =VLOOKUP(A9,[2]RAW!$C$2:$J$8276,3,FALSE) -> -33 | E9: =VLOOKUP(A9,[2]RAW!$C$2:$J$8276,4,FALSE) -> -38 | F9: =VLOOKUP(A9,[2]RAW!$C$2:$J$8276,5,FALSE) -> -49 | G9: =VLOOKUP(A9,[2]RAW!$C$2:$J$8276,6,FALSE) -> 23 | H9: =VLOOKUP(A9,[2]RAW!$C$2:$J$8276,7,FALSE) -> 7 | I9: =VLOOKUP(A9,[2]RAW!$C$2:$J$8276,8,FALSE) -> 34 | J9: =VLOOKUP(A9,[3]RAW!$C$17:$BK$8270,60,FALSE) -> -33.64694444 | K9: =VLOOKUP(A9,[3]RAW!$C$17:$BK$8270,61,FALSE) -> 23.12611111 | N9: x | Q9: x | AI9: x | AK9: George

Sheet Mthatha
B1: SLA | C1: Province | D1: LAT_DEG | E1: LAT_MIN | F1: LAT_SEC | G1: LONG_DEG | H1: LONG_MIN | I1: LONG_SEC | J1: DECIMAL LATITUDE | K1: DECIMAL LONGITUDE | L1: RSGR | M1: SBC1 | N1: SBC2 | O1: SBC3 | P1: 2000 | Q1: DTT1 | R1: DTT2 | S1: SAFM | T1: LOBO | U1: SEDI | V1: EKHE | W1: HOZI | X1: METR | Y1: RAD5 | Z1: RGHP | AA1: WEZI | AB1: WALA | AC1: LTUS | AD1: PHAL | AE1: MOTS | AF1: NENE | AG1: BELA | AH1: XKFM | AI1: Regional Site | AJ1: outside sites | AK1: Probe site
A2: PORT ST JOHNS | B2: =VLOOKUP(A2,'[1]RSG Sites'!$A$2:$F$133,6,FALSE) -> Silver | C2: =VLOOKUP(A2,[2]RAW!$C$2:$O$8276,13,FALSE) -> EC | D2: =VLOOKUP(A2,[2]RAW!$C$2:$J$8276,3,FALSE) -> -31 | E2: =VLOOKUP(A2,[2]RAW!$C$2:$J$8276,4,FALSE) -> -36 | F2: =VLOOKUP(A2,[2]RAW!$C$2:$J$8276,5,FALSE) -> -39 | G2: =VLOOKUP(A2,[2]RAW!$C$2:$J$8276,6,FALSE) -> 29 | H2: =VLOOKUP(A2,[2]RAW!$C$2:$J$8276,7,FALSE) -> 31 | I2: =VLOOKUP(A2,[2]RAW!$C$2:$J$8276,8,FALSE) -> 39 | J2: =VLOOKUP(A2,[3]RAW!$C$17:$BK$8270,60,FALSE) -> -31.61083333 | K2: =VLOOKUP(A2,[3]RAW!$C$17:$BK$8270,61,FALSE) -> 29.5275 | L2: x | M2: x | N2: x | O2: x | P2: x | Q2: x | R2: x | S2: x | T2: x | AJ2: x | AK2: Mthatha
A3: HOLY CROSS | C3: EC | D3: -31 | E3: -8 | F3: -25 | G3: 29 | H3: 29 | I3: 27 | J3: -31.14027778 | K3: 29.49083333 | Q3: x | T3: x | AJ3: x | AK3: Mthatha
A4: MATATIELE | B4: Silver | C4: EC | D4: -30 | E4: -23 | F4: -45 | G4: 28 | H4: 49 | I4: 19 | J4: -30.39583333 | K4: 28.82194444 | L4: x | M4: x | N4: x | O4: x | Q4: x | R4: x | S4: x | U4: x | AJ4: x | AK4: Mthatha
A5: MOUNT AYLIFF | B5: Silver | C5: EC | D5: -30 | E5: -50 | F5: -11 | G5: 29 | H5: 23 | I5: 41 | J5: -30.83638889 | K5: 29.39472222 | L5: x | M5: x | N5: x | O5: x | P5: x | Q5: x | R5: x | S5: x | T5: x | W5: x | AJ5: x | AK5: Mthatha
A6: Mthatha | B6: =VLOOKUP(A6,'[1]RSG Sites'!$A$2:$F$133,6,FALSE) ->  | C6: =VLOOKUP(A6,[2]RAW!$C$2:$O$8276,13,FALSE) ->  | D6: =VLOOKUP(A6,[2]RAW!$C$2:$J$8276,3,FALSE) ->  | E6: =VLOOKUP(A6,[2]RAW!$C$2:$J$8276,4,FALSE) ->  | F6: =VLOOKUP(A6,[2]RAW!$C$2:$J$8276,5,FALSE) ->  | G6: =VLOOKUP(A6,[2]RAW!$C$2:$J$8276,6,FALSE) ->  | H6: =VLOOKUP(A6,[2]RAW!$C$2:$J$8276,7,FALSE) ->  | I6: =VLOOKUP(A6,[2]RAW!$C$2:$J$8276,8,FALSE) ->  | J6: =VLOOKUP(A6,[3]RAW!$C$17:$BK$8270,60,FALSE) ->  | K6: =VLOOKUP(A6,[3]RAW!$C$17:$BK$8270,61,FALSE) ->  | L6: x | M6: x | N6: x | O6: x | P6: x | Q6: x | R6: x | S6: x | T6: x | W6: x | AJ6: x | AK6: Mthatha
